Workbook

Sheet schedule
C2: Monday Night Handicap Doubles League | K2: (as at 23 April 2013)
C3: Summer League 2013
E5: 1 & 2 | G5: 3 & 4 | I5: 5 & 6 | K5: 7 & 8 | M5: 9&10
C6: 1 | D6: 2013-04-22 | E6: 1 | F6: 2 | G6: 3 | H6: 4 | I6: 5 | J6: 6 | K6: 7 | L6: 8 | M6: 9 | N6: 10
C7: 2 | D7: 2013-04-29 | E7: 7 | F7: 3 | G7: 1 | H7: 6 | I7: 2 | J7: 9 | K7: 8 | L7: 4 | M7: 5 | N7: 10
C8: 3 | D8: 2013-05-13 | E8: 4 | F8: 5 | G8: 9 | H8: 8 | I8: 3 | J8: 2 | K8: 6 | L8: 7 | M8: 1 | N8: 10
C9: 4 | D9: 2013-06-03 | E9: 9 | F9: 1 | G9: 5 | H9: 3 | I9: 4 | J9: 7 | K9: 8 | L9: 6 | M9: 2 | N9: 10
C10: 5 | D10: 2013-06-10 | E10: 10 | F10: 7 | G10: 6 | H10: 2 | I10: 8 | J10: 3 | K10: 4 | L10: 1 | M10: 5 | N10: 9
C11: 6 | D11: 2013-06-17 | E11: 5 | F11: 8 | G11: 4 | H11: 10 | I11: 7 | J11: 2 | K11: 6 | L11: 9 | M11: 1 | N11: 3
C12: 7 | D12: 2013-06-24 | E12: 6 | F12: 4 | G12: 7 | H12: 9 | I12: 1 | J12: 5 | K12: 10 | L12: 3 | M12: 2 | N12: 8
C13: 8 | D13: 2013-07-01 | E13: 3 | F13: 9 | G13: 8 | H13: 1 | I13: 6 | J13: 10 | K13: 2 | L13: 4 | M13: 7 | N13: 5
C14: 9 | D14: 2013-07-08 | E14: 8 | F14: 10 | G14: 2 | H14: 5 | I14: 9 | J14: 4 | K14: 1 | L14: 7 | M14: 3 | N14: 6
C15: 10 | D15: 2013-07-15 | E15: 4 | F15: 3 | G15: 10 | H15: 9 | I15: 2 | J15: 1 | K15: 6 | L15: 5 | M15: 8 | N15: 7
C16: 11 | D16: 2013-07-22 | E16: 6 | F16: 1 | G16: 4 | H16: 8 | I16: 3 | J16: 7 | K16: 9 | L16: 2 | M16: 10 | N16: 5
C17: 12 | D17: 2013-07-29 | E17: 8 | F17: 9 | G17: 7 | H17: 6 | I17: 5 | J17: 4 | K17: 1 | L17: 10 | M17: 2 | N17: 3
C18: 13 | D18: 2013-08-05 | E18: 3 | F18: 5 | G18: 2 | H18: 10 | I18: 1 | J18: 9 | K18: 7 | L18: 4 | M18: 6 | N18: 8
C19: 14 | D19: 2013-08-12
C20: 15 | D20: 2013-08-19
C21: 16
C22: 17
C23: 18
C24: 19
D28: 1 | E28: Hot Chris Bunz | I28: Chris Woodward
D29: 2 | E29: Stealth Bowlers | I29: Carl Briggs | N29: Liz Lake
D30: 3 | E30: Chucklers | I30: Ethan Taylor
D31: 4 | E31: Boom | I31: Lew Ashenden
D32: 5 | E32: Duo | I32: Tony Pearce
D33: 6 | E33: Mac Too | I33: Diane MacFarlane
D34: 7 | E34: Brothers Grimm | I34: Steve Emmony
D35: 8 | E35: Hit & Miss | I35: Liz Lake
D36: 9 | E36: Just Friends | I36: Karen Davies
D37: 10 | E37: The Kings | I37: Kevin King
E48: 11 | F48: 12 | G48: 5 | H48: 6 | I48: 9 | J48: 10 | K48: 1 | L48: 2 | M48: 3 | N48: 4
E49: 10 | F49: 8 | G49: 12 | H49: 3 | I49: 1 | J49: 7 | K49: 4 | L49: 5 | M49: 6 | N49: 2
C50: 27 | D50: 2010-04-21 | E50: 6 | F50: 7 | G50: 11 | H50: 4 | I50: 8 | J50: 2 | K50: 9 | L50: 3 | M50: 1 | N50: 10
C51: 28 | D51: 2010-04-28 | E51: 1 | F51: 3 | G51: 9 | H51: 2 | I51: 11 | J51: 6 | K51: 7 | L51: 12 | M51: 5 | N51: 8
D52: 2010-05-05 | E52: Bank Holiday
C53: 29 | D53: 2010-05-12 | E53: 2 | F53: 4 | G53: 1 | H53: 5 | I53: 10 | J53: 12 | K53: 11 | L53: 8 | M53: 9 | N53: 7
C54: 30 | D54: 2010-05-19 | E54: 9 | F54: 5 | G54: 3 | H54: 8 | I54: 7 | J54: 4 | K54: 10 | L54: 6 | M54: 11 | N54: 1
D55: 2010-05-26 | E55: Bank Holiday
C56: 31 | D56: 2010-06-02 | E56: 3 | F56: 11 | G56: 2 | H56: 10 | I56: 6 | J56: 8 | K56: 5 | L56: 7 | M56: 4 | N56: 12
C57: 32 | D57: 2010-06-09 | E57: 8 | F57: 1 | G57: 7 | H57: 11 | I57: 2 | J57: 3 | K57: 12 | L57: 9 | M57: 10 | N57: 5
C58: 33 | D58: 2010-06-16 | E58: 7 | F58: 10 | G58: 8 | H58: 12 | I58: 4 | J58: 9 | K58: 6 | L58: 1 | M58: 2 | N58: 11
C59: 34 | D59: 2010-06-23 | E59: 12 | F59: 6 | G59: 4 | H59: 1 | I59: 5 | J59: 11 | K59: 3 | L59: 10 | M59: 8 | N59: 9
C60: 35 | D60: 2010-06-30 | E60: 5 | F60: 2 | G60: 6 | H60: 9 | I60: 12 | J60: 1 | K60: 8 | L60: 4 | M60: 7 | N60: 3
C61: 36 | D61: 2010-07-07 | E61: Position Night

Sheet scoresheets
C2: count | D2: 9
C3: week | D3: 10
C4: Date | D4: 15 July 2013
D6: Monday Night Doubles League | H6: ="Week "&D3 -> Week 10 | J6: =D4 -> 15 July 2013
C8: Team | D8: =VLOOKUP(I8,teams,2) -> Hit & Miss | I8: =VLOOKUP(week,schedule,count+2) -> 8 | J8: Lane | K8: =count -> 9
E10: Handicap | F10: 1 | G10: 2 | H10: 3 | I10: Series Total | J10: Total Handicap | K10: Total | L10: Points
C11: =VLOOKUP(I$8,teams,3) -> 81 | D11: =VLOOKUP(I$8,teams,4) -> Paul Simmons | E11: =VLOOKUP(C11,playstats,6) -> 44 | J11: =+E11*3 -> 132
C12: =VLOOKUP(I$8,teams,5) -> 82 | D12: =VLOOKUP(I$8,teams,6) -> Liz Lake | E12: =VLOOKUP(C12,playstats,6) -> 51 | J12: =+E12*3 -> 153
C13: =IF(VLOOKUP(I$8,teams,7)="","",VLOOKUP(I$8,teams,7)) -> 83 | D13: =IF(VLOOKUP(I$8,teams,8)="","",VLOOKUP(I$8,teams,8)) -> Donna Smith | E13: =IF(C13="","",VLOOKUP(C13,playstats,6)) -> 54 | J13: =IF(E13="","",+E13*3) -> 162
C14: =IF(VLOOKUP(I$8,teams,9)="","",VLOOKUP(I$8,teams,9)) ->  | D14: =IF(VLOOKUP(I$8,teams,10)="","",VLOOKUP(I$8,teams,10)) ->  | E14: =IF(C14="","",VLOOKUP(C14,PLAYERS,3)) ->  | J14: =IF(E14="","",+E14*3) -> 
D15: Team Total | J15: =IF(J13="",+J11+J12,"") -> 
D16: Handicap | E16: =IF(E13="",E11+E12,"") ->  | F16: =E16 ->  | G16: =E16 ->  | H16: =E16 ->  | I16: =IF(F16="","",(F16+G16+H16)) -> 
D17: Total | L17: Total Points
D18: Points
D20: Splits converted (& other flukes), clean games
D21: Signed
C23: Team | D23: =VLOOKUP(I23,teams,2) -> Brothers Grimm | I23: =VLOOKUP(week,schedule,count+3) -> 7 | J23: Lane | K23: =count+1 -> 10
E25: Handicap | F25: 1 | G25: 2 | H25: 3 | I25: Series Total | J25: Total Handicap | K25: Total | L25: Points
C26: =VLOOKUP(I$23,teams,3) -> 71 | D26: =VLOOKUP(I$23,teams,4) -> Steve Emmony | E26: =VLOOKUP(C26,playstats,6) -> 28 | J26: =+E26*3 -> 84
C27: =VLOOKUP(I$23,teams,5) -> 72 | D27: =VLOOKUP(I$23,teams,6) -> Terry Emmony | E27: =VLOOKUP(C27,playstats,6) -> 38 | J27: =+E27*3 -> 114
C28: =IF(VLOOKUP(I$23,teams,7)="","",VLOOKUP(I$23,teams,7)) -> 73 | D28: =IF(VLOOKUP(I$23,teams,8)="","",VLOOKUP(I$23,teams,8)) -> Martin Cook | E28: =IF(C28="","",VLOOKUP(C28,playstats,6)) -> 42 | J28: =IF(E28="","",+E28*3) -> 126
C29: =IF(VLOOKUP(I$23,teams,9)="","",VLOOKUP(I$23,teams,9)) ->  | D29: =IF(VLOOKUP(I$23,teams,10)="","",VLOOKUP(I$23,teams,10)) ->  | E29: =IF(C29="","",VLOOKUP(C29,PLAYERS,3)) ->  | J29: =IF(E29="","",+E29*3) -> 
D30: Team Total | J30: =IF(J28="",+J26+J27,"") -> 
D31: Handicap | E31: =IF(E28="",E26+E27,"") ->  | F31: =E31 ->  | G31: =E31 ->  | H31: =E31 ->  | I31: =IF(F31="","",(F31+G31+H31)) -> 
D32: Total | L32: Total Points
D33: Points
D35: Splits converted (& other flukes), clean games
D36: Signed

Sheet results
D2: scoresheets | E2: week | F2: 10 | G2: =VLOOKUP(F2,schedule,2) -> 2013-07-15
B3: Team | F3: 1 | G3: 2 | H3: 3 | I3: Series | J3: Hcap | K3: Total | L3: Pts
A4: 1 | B4: 4 | C4: 41 | D4: =VLOOKUP(C4,playstats,2) -> Lew Ashenden | E4: =VLOOKUP(C4,playstats,6) -> 53 | F4: 76 | G4: 115 | H4: 204 | I4: =SUM(F4:H4) -> 395 | J4: =E4*3 -> 159 | K4: =I4+J4 -> 554 | L4: =2-L11 -> 0 | O4: Results
C5: 42 | D5: =VLOOKUP(C5,playstats,2) -> Chris Johnson | E5: =VLOOKUP(C5,playstats,6) -> 49 | F5: 94 | G5: 139 | H5: 123 | I5: =SUM(F5:H5) -> 356 | J5: =E5*3 -> 147 | K5: =I5+J5 -> 503 | L5: =2-L12 -> 2 | N5: 1 | O5: =VLOOKUP(B4,teams,2) -> Boom | P5: =I8 -> 1057 | Q5: =L9 -> 8 | R5: =VLOOKUP(B11,teams,2) -> Chucklers | S5: =L16 -> 4 | T5: =I15 -> 1047
F6: =SUM(F4:F5) -> 170 | G6: =SUM(G4:G5) -> 254 | H6: =SUM(H4:H5) -> 327 | I6: =SUM(I4:I5) -> 751 | N6: 2 | O6: =VLOOKUP(B19,teams,2) -> The Kings | P6: =I23 -> 1141 | Q6: =L24 -> 2 | R6: =VLOOKUP(B26,teams,2) -> Just Friends | S6: =L31 -> 10 | T6: =I30 -> 1284
F7: =$E4+$E5 -> 102 | G7: =$E4+$E5 -> 102 | H7: =$E4+$E5 -> 102 | I7: =SUM(F7:H7) -> 306 | J7: =SUM(J4:J5) -> 306 | K7: =SUM(K4:K5) -> 1057 | N7: 3 | O7: =VLOOKUP(B34,teams,2) -> Mac Too | P7: =I38 -> 1057 | Q7: =L39 -> 8 | R7: =VLOOKUP(B41,teams,2) -> Duo | S7: =L46 -> 4 | T7: =I45 -> 1041
F8: =SUM(F6:F7) -> 272 | G8: =SUM(G6:G7) -> 356 | H8: =SUM(H6:H7) -> 429 | I8: =SUM(I6:I7) -> 1057 | N8: 4 | O8: =VLOOKUP(B49,teams,2) -> Hit & Miss | P8: =I53 -> 1148 | Q8: =L54 -> 8 | R8: =VLOOKUP(B56,teams,2) -> Brothers Grimm | S8: =L61 -> 4 | T8: =I60 -> 1071
F9: =2-F16 -> 0 | G9: =2-G16 -> 2 | H9: =2-H16 -> 2 | I9: =2-I16 -> 2 | L9: =SUM(L4:L8)+SUM(F9:I9) -> 8 | N9: 5 | O9: =VLOOKUP(B64,teams,2) -> Stealth Bowlers | P9: =I68 -> 204 | Q9: =L69 -> 0 | R9: =VLOOKUP(B71,teams,2) -> The Kings | S9: =L76 -> 12 | T9: =I75 -> 273
N10: 6 | O10: =VLOOKUP(B79,teams,2) -> Just Friends | P10: =I83 -> 300 | Q10: =L84 -> 12 | R10: =VLOOKUP(B86,teams,2) -> The Kings | S10: =L91 -> 0 | T10: =I90 -> 273
B11: 3 | C11: 31 | D11: =VLOOKUP(C11,playstats,2) -> Sarah Shellard | E11: =VLOOKUP(C11,playstats,6) -> 49 | F11: 156 | G11: 145 | H11: 127 | I11: =SUM(F11:H11) -> 428 | J11: =E11*3 -> 147 | K11: =I11+J11 -> 575 | L11: =IF(K11>K4,2,IF(K11=K4,1,0)) -> 2 | N11: 7 | O11: =VLOOKUP(B94,teams,2) -> Duo | P11: =I98 -> 240 | Q11: =L99 -> 2 | R11: =VLOOKUP(B101,teams,2) -> The Kings | S11: =L106 -> 10 | T11: =I105 -> 273
C12: 33 | D12: =VLOOKUP(C12,playstats,2) -> Owen Campbell | E12: =VLOOKUP(C12,playstats,6) -> 50 | F12: 135 | G12: 90 | H12: 97 | I12: =SUM(F12:H12) -> 322 | J12: =E12*3 -> 150 | K12: =I12+J12 -> 472 | L12: =IF(K12>K5,2,IF(K12=K5,1,0)) -> 0 | N12: 8 | O12: =VLOOKUP(B109,teams,2) -> Hot Chris Bunz | P12: =I113 -> 243 | Q12: =L114 -> 0 | R12: =VLOOKUP(B116,teams,2) -> The Kings | S12: =L121 -> 12 | T12: =I120 -> 273
F13: =SUM(F11:F12) -> 291 | G13: =SUM(G11:G12) -> 235 | H13: =SUM(H11:H12) -> 224 | I13: =SUM(I11:I12) -> 750
F14: =$E11+$E12 -> 99 | G14: =$E11+$E12 -> 99 | H14: =$E11+$E12 -> 99 | I14: =SUM(F14:H14) -> 297 | J14: =SUM(J11:J12) -> 297 | K14: =SUM(K11:K12) -> 1047
F15: =SUM(F13:F14) -> 390 | G15: =SUM(G13:G14) -> 334 | H15: =SUM(H13:H14) -> 323 | I15: =SUM(I13:I14) -> 1047
F16: =IF(F15>F8,2,IF(F15=F8,1,0)) -> 2 | G16: =IF(G15>G8,2,IF(G15=G8,1,0)) -> 0 | H16: =IF(H15>H8,2,IF(H15=H8,1,0)) -> 0 | I16: =IF(I15>I8,2,IF(I15=I8,1,0)) -> 0 | L16: =SUM(L11:L15)+SUM(F16:I16) -> 4
A19: 2 | B19: 10 | C19: 102 | D19: =VLOOKUP(C19,playstats,2) -> Karl King | E19: =VLOOKUP(C19,playstats,6) -> 42 | F19: 110 | G19: 143 | H19: 200 | I19: =SUM(F19:H19) -> 453 | J19: =E19*3 -> 126 | K19: =I19+J19 -> 579 | L19: =2-L26 -> 0
C20: 101 | D20: =VLOOKUP(C20,playstats,2) -> Kevin King | E20: =VLOOKUP(C20,playstats,6) -> 49 | F20: 129 | G20: 107 | H20: 179 | I20: =SUM(F20:H20) -> 415 | J20: =E20*3 -> 147 | K20: =I20+J20 -> 562 | L20: =2-L27 -> 0
F21: =SUM(F19:F20) -> 239 | G21: =SUM(G19:G20) -> 250 | H21: =SUM(H19:H20) -> 379 | I21: =SUM(I19:I20) -> 868
F22: =$E19+$E20 -> 91 | G22: =$E19+$E20 -> 91 | H22: =$E19+$E20 -> 91 | I22: =SUM(F22:H22) -> 273 | J22: =SUM(J19:J20) -> 273 | K22: =SUM(K19:K20) -> 1141
F23: =SUM(F21:F22) -> 330 | G23: =SUM(G21:G22) -> 341 | H23: =SUM(H21:H22) -> 470 | I23: =SUM(I21:I22) -> 1141
F24: =2-F31 -> 0 | G24: =2-G31 -> 0 | H24: =2-H31 -> 2 | I24: =2-I31 -> 0 | L24: =SUM(L19:L23)+SUM(F24:I24) -> 2
B26: 9 | C26: 92 | D26: =VLOOKUP(C26,playstats,2) -> Martin Lapidge | E26: =VLOOKUP(C26,playstats,6) -> 43 | F26: 192 | G26: 148 | H26: 179 | I26: =SUM(F26:H26) -> 519 | J26: =E26*3 -> 129 | K26: =I26+J26 -> 648 | L26: =IF(K26>K19,2,IF(K26=K19,1,0)) -> 2
C27: 93 | D27: =VLOOKUP(C27,playstats,2) -> Terry Highton | E27: =VLOOKUP(C27,playstats,6) -> 31 | F27: 166 | G27: 198 | H27: 179 | I27: =SUM(F27:H27) -> 543 | J27: =E27*3 -> 93 | K27: =I27+J27 -> 636 | L27: =IF(K27>K20,2,IF(K27=K20,1,0)) -> 2
F28: =SUM(F26:F27) -> 358 | G28: =SUM(G26:G27) -> 346 | H28: =SUM(H26:H27) -> 358 | I28: =SUM(I26:I27) -> 1062
F29: =$E26+$E27 -> 74 | G29: =$E26+$E27 -> 74 | H29: =$E26+$E27 -> 74 | I29: =SUM(F29:H29) -> 222 | J29: =SUM(J26:J27) -> 222 | K29: =SUM(K26:K27) -> 1284
F30: =SUM(F28:F29) -> 432 | G30: =SUM(G28:G29) -> 420 | H30: =SUM(H28:H29) -> 432 | I30: =SUM(I28:I29) -> 1284
F31: =IF(F30>F23,2,IF(F30=F23,1,0)) -> 2 | G31: =IF(G30>G23,2,IF(G30=G23,1,0)) -> 2 | H31: =IF(H30>H23,2,IF(H30=H23,1,0)) -> 0 | I31: =IF(I30>I23,2,IF(I30=I23,1,0)) -> 2 | L31: =SUM(L26:L30)+SUM(F31:I31) -> 10
A34: 3 | B34: 6 | C34: 61 | D34: =VLOOKUP(C34,playstats,2) -> Diane MacFarlane | E34: =VLOOKUP(C34,playstats,6) -> 41 | F34: 144 | G34: 134 | H34: 134 | I34: =SUM(F34:H34) -> 412 | J34: =E34*3 -> 123 | K34: =I34+J34 -> 535 | L34: =2-L41 -> 0
C35: 62 | D35: =VLOOKUP(C35,playstats,2) -> Keith MacFarlane | E35: =VLOOKUP(C35,playstats,6) -> 30 | F35: 175 | G35: 122 | H35: 135 | I35: =SUM(F35:H35) -> 432 | J35: =E35*3 -> 90 | K35: =I35+J35 -> 522 | L35: =2-L42 -> 2
F36: =SUM(F34:F35) -> 319 | G36: =SUM(G34:G35) -> 256 | H36: =SUM(H34:H35) -> 269 | I36: =SUM(I34:I35) -> 844
F37: =$E34+$E35 -> 71 | G37: =$E34+$E35 -> 71 | H37: =$E34+$E35 -> 71 | I37: =SUM(F37:H37) -> 213 | J37: =SUM(J34:J35) -> 213 | K37: =SUM(K34:K35) -> 1057
F38: =SUM(F36:F37) -> 390 | G38: =SUM(G36:G37) -> 327 | H38: =SUM(H36:H37) -> 340 | I38: =SUM(I36:I37) -> 1057
F39: =2-F46 -> 2 | G39: =2-G46 -> 2 | H39: =2-H46 -> 0 | I39: =2-I46 -> 2 | L39: =SUM(L34:L38)+SUM(F39:I39) -> 8
B41: 5 | C41: 51 | D41: =VLOOKUP(C41,playstats,2) -> Tony Pearce | E41: =VLOOKUP(C41,playstats,6) -> 51 | F41: 164 | G41: 99 | H41: 151 | I41: =SUM(F41:H41) -> 414 | J41: =E41*3 -> 153 | K41: =I41+J41 -> 567 | L41: =IF(K41>K34,2,IF(K41=K34,1,0)) -> 2
C42: 52 | D42: =VLOOKUP(C42,playstats,2) -> Richard Lester | E42: =VLOOKUP(C42,playstats,6) -> 29 | F42: 129 | G42: 129 | H42: 129 | I42: =SUM(F42:H42) -> 387 | J42: =E42*3 -> 87 | K42: =I42+J42 -> 474 | L42: =IF(K42>K35,2,IF(K42=K35,1,0)) -> 0
F43: =SUM(F41:F42) -> 293 | G43: =SUM(G41:G42) -> 228 | H43: =SUM(H41:H42) -> 280 | I43: =SUM(I41:I42) -> 801
F44: =$E41+$E42 -> 80 | G44: =$E41+$E42 -> 80 | H44: =$E41+$E42 -> 80 | I44: =SUM(F44:H44) -> 240 | J44: =SUM(J41:J42) -> 240 | K44: =SUM(K41:K42) -> 1041
F45: =SUM(F43:F44) -> 373 | G45: =SUM(G43:G44) -> 308 | H45: =SUM(H43:H44) -> 360 | I45: =SUM(I43:I44) -> 1041
F46: =IF(F45>F38,2,IF(F45=F38,1,0)) -> 0 | G46: =IF(G45>G38,2,IF(G45=G38,1,0)) -> 0 | H46: =IF(H45>H38,2,IF(H45=H38,1,0)) -> 2 | I46: =IF(I45>I38,2,IF(I45=I38,1,0)) -> 0 | L46: =SUM(L41:L45)+SUM(F46:I46) -> 4
A49: 4 | B49: 8 | C49: 81 | D49: =VLOOKUP(C49,playstats,2) -> Paul Simmons | E49: =VLOOKUP(C49,playstats,6) -> 44 | F49: 152 | G49: 158 | H49: 159 | I49: =SUM(F49:H49) -> 469 | J49: =E49*3 -> 132 | K49: =I49+J49 -> 601 | L49: =2-L56 -> 2
C50: 82 | D50: =VLOOKUP(C50,playstats,2) -> Liz Lake | E50: =VLOOKUP(C50,playstats,6) -> 51 | F50: 140 | G50: 111 | H50: 143 | I50: =SUM(F50:H50) -> 394 | J50: =E50*3 -> 153 | K50: =I50+J50 -> 547 | L50: =2-L57 -> 0
F51: =SUM(F49:F50) -> 292 | G51: =SUM(G49:G50) -> 269 | H51: =SUM(H49:H50) -> 302 | I51: =SUM(I49:I50) -> 863
F52: =$E49+$E50 -> 95 | G52: =$E49+$E50 -> 95 | H52: =$E49+$E50 -> 95 | I52: =SUM(F52:H52) -> 285 | J52: =SUM(J49:J50) -> 285 | K52: =SUM(K49:K50) -> 1148
F53: =SUM(F51:F52) -> 387 | G53: =SUM(G51:G52) -> 364 | H53: =SUM(H51:H52) -> 397 | I53: =SUM(I51:I52) -> 1148
F54: =2-F61 -> 2 | G54: =2-G61 -> 0 | H54: =2-H61 -> 2 | I54: =2-I61 -> 2 | L54: =SUM(L49:L53)+SUM(F54:I54) -> 8
B56: 7 | C56: 71 | D56: =VLOOKUP(C56,playstats,2) -> Steve Emmony | E56: =VLOOKUP(C56,playstats,6) -> 28 | F56: 126 | G56: 149 | H56: 146 | I56: =SUM(F56:H56) -> 421 | J56: =E56*3 -> 84 | K56: =I56+J56 -> 505 | L56: =IF(K56>K49,2,IF(K56=K49,1,0)) -> 0
C57: 72 | D57: =VLOOKUP(C57,playstats,2) -> Terry Emmony | E57: =VLOOKUP(C57,playstats,6) -> 38 | F57: 131 | G57: 179 | H57: 142 | I57: =SUM(F57:H57) -> 452 | J57: =E57*3 -> 114 | K57: =I57+J57 -> 566 | L57: =IF(K57>K50,2,IF(K57=K50,1,0)) -> 2
F58: =SUM(F56:F57) -> 257 | G58: =SUM(G56:G57) -> 328 | H58: =SUM(H56:H57) -> 288 | I58: =SUM(I56:I57) -> 873
F59: =$E56+$E57 -> 66 | G59: =$E56+$E57 -> 66 | H59: =$E56+$E57 -> 66 | I59: =SUM(F59:H59) -> 198 | J59: =SUM(J56:J57) -> 198 | K59: =SUM(K56:K57) -> 1071
F60: =SUM(F58:F59) -> 323 | G60: =SUM(G58:G59) -> 394 | H60: =SUM(H58:H59) -> 354 | I60: =SUM(I58:I59) -> 1071
F61: =IF(F60>F53,2,IF(F60=F53,1,0)) -> 0 | G61: =IF(G60>G53,2,IF(G60=G53,1,0)) -> 2 | H61: =IF(H60>H53,2,IF(H60=H53,1,0)) -> 0 | I61: =IF(I60>I53,2,IF(I60=I53,1,0)) -> 0 | L61: =SUM(L56:L60)+SUM(F61:I61) -> 4
A64: 5 | B64: 2 | C64: 21 | D64: =VLOOKUP(C64,playstats,2) -> Carl Briggs | E64: =VLOOKUP(C64,playstats,6) -> 34 | J64: =E64*3 -> 102 | K64: =I64+J64 -> 102 | L64: =2-L71 -> 0
C65: 23 | D65: =VLOOKUP(C65,playstats,2) -> Nathon Ferrie | E65: =VLOOKUP(C65,playstats,6) -> 34 | J65: =E65*3 -> 102 | K65: =I65+J65 -> 102 | L65: =2-L72 -> 0
F66: =SUM(F64:F65) -> 0 | G66: =SUM(G64:G65) -> 0 | H66: =SUM(H64:H65) -> 0 | I66: =SUM(I64:I65) -> 0
F67: =$E64+$E65 -> 68 | G67: =$E64+$E65 -> 68 | H67: =$E64+$E65 -> 68 | I67: =SUM(F67:H67) -> 204 | J67: =SUM(J64:J65) -> 204 | K67: =SUM(K64:K65) -> 204
F68: =SUM(F66:F67) -> 68 | G68: =SUM(G66:G67) -> 68 | H68: =SUM(H66:H67) -> 68 | I68: =SUM(I66:I67) -> 204
F69: =2-F76 -> 0 | G69: =2-G76 -> 0 | H69: =2-H76 -> 0 | I69: =2-I76 -> 0 | L69: =SUM(L64:L68)+SUM(F69:I69) -> 0
B71: 10 | C71: 102 | D71: =VLOOKUP(C71,playstats,2) -> Karl King | E71: =VLOOKUP(C71,playstats,6) -> 42 | J71: =E71*3 -> 126 | K71: =I71+J71 -> 126 | L71: =IF(K71>K64,2,IF(K71=K64,1,0)) -> 2
C72: 101 | D72: =VLOOKUP(C72,playstats,2) -> Kevin King | E72: =VLOOKUP(C72,playstats,6) -> 49 | J72: =E72*3 -> 147 | K72: =I72+J72 -> 147 | L72: =IF(K72>K65,2,IF(K72=K65,1,0)) -> 2
F73: =SUM(F71:F72) -> 0 | G73: =SUM(G71:G72) -> 0 | H73: =SUM(H71:H72) -> 0 | I73: =SUM(I71:I72) -> 0
F74: =$E71+$E72 -> 91 | G74: =$E71+$E72 -> 91 | H74: =$E71+$E72 -> 91 | I74: =SUM(F74:H74) -> 273 | J74: =SUM(J71:J72) -> 273 | K74: =SUM(K71:K72) -> 273
F75: =SUM(F73:F74) -> 91 | G75: =SUM(G73:G74) -> 91 | H75: =SUM(H73:H74) -> 91 | I75: =SUM(I73:I74) -> 273
F76: =IF(F75>F68,2,IF(F75=F68,1,0)) -> 2 | G76: =IF(G75>G68,2,IF(G75=G68,1,0)) -> 2 | H76: =IF(H75>H68,2,IF(H75=H68,1,0)) -> 2 | I76: =IF(I75>I68,2,IF(I75=I68,1,0)) -> 2 | L76: =SUM(L71:L75)+SUM(F76:I76) -> 12
A79: 6 | B79: 9 | C79: 92 | D79: =VLOOKUP(C79,playstats,2) -> Martin Lapidge | E79: =VLOOKUP(C79,playstats,6) -> 43 | J79: =E79*3 -> 129 | K79: =I79+J79 -> 129 | L79: =2-L86 -> 2
C80: 91 | D80: =VLOOKUP(C80,playstats,2) -> Karen Davies | E80: =VLOOKUP(C80,playstats,6) -> 57 | J80: =E80*3 -> 171 | K80: =I80+J80 -> 171 | L80: =2-L87 -> 2
F81: =SUM(F79:F80) -> 0 | G81: =SUM(G79:G80) -> 0 | H81: =SUM(H79:H80) -> 0 | I81: =SUM(I79:I80) -> 0
F82: =$E79+$E80 -> 100 | G82: =$E79+$E80 -> 100 | H82: =$E79+$E80 -> 100 | I82: =SUM(F82:H82) -> 300 | J82: =SUM(J79:J80) -> 300 | K82: =SUM(K79:K80) -> 300
F83: =SUM(F81:F82) -> 100 | G83: =SUM(G81:G82) -> 100 | H83: =SUM(H81:H82) -> 100 | I83: =SUM(I81:I82) -> 300
F84: =2-F91 -> 2 | G84: =2-G91 -> 2 | H84: =2-H91 -> 2 | I84: =2-I91 -> 2 | L84: =SUM(L79:L83)+SUM(F84:I84) -> 12
B86: 10 | C86: 102 | D86: =VLOOKUP(C86,playstats,2) -> Karl King | E86: =VLOOKUP(C86,playstats,6) -> 42 | J86: =E86*3 -> 126 | K86: =I86+J86 -> 126 | L86: =IF(K86>K79,2,IF(K86=K79,1,0)) -> 0
C87: 101 | D87: =VLOOKUP(C87,playstats,2) -> Kevin King | E87: =VLOOKUP(C87,playstats,6) -> 49 | J87: =E87*3 -> 147 | K87: =I87+J87 -> 147 | L87: =IF(K87>K80,2,IF(K87=K80,1,0)) -> 0
F88: =SUM(F86:F87) -> 0 | G88: =SUM(G86:G87) -> 0 | H88: =SUM(H86:H87) -> 0 | I88: =SUM(I86:I87) -> 0
F89: =$E86+$E87 -> 91 | G89: =$E86+$E87 -> 91 | H89: =$E86+$E87 -> 91 | I89: =SUM(F89:H89) -> 273 | J89: =SUM(J86:J87) -> 273 | K89: =SUM(K86:K87) -> 273
F90: =SUM(F88:F89) -> 91 | G90: =SUM(G88:G89) -> 91 | H90: =SUM(H88:H89) -> 91 | I90: =SUM(I88:I89) -> 273
F91: =IF(F90>F83,2,IF(F90=F83,1,0)) -> 0 | G91: =IF(G90>G83,2,IF(G90=G83,1,0)) -> 0 | H91: =IF(H90>H83,2,IF(H90=H83,1,0)) -> 0 | I91: =IF(I90>I83,2,IF(I90=I83,1,0)) -> 0 | L91: =SUM(L86:L90)+SUM(F91:I91) -> 0
A94: 7 | B94: 5 | C94: 51 | D94: =VLOOKUP(C94,playstats,2) -> Tony Pearce | E94: =VLOOKUP(C94,playstats,6) -> 51 | J94: =E94*3 -> 153 | K94: =I94+J94 -> 153 | L94: =2-L101 -> 2
C95: 52 | D95: =VLOOKUP(C95,playstats,2) -> Richard Lester | E95: =VLOOKUP(C95,playstats,6) -> 29 | J95: =E95*3 -> 87 | K95: =I95+J95 -> 87 | L95: =2-L102 -> 0
F96: =SUM(F94:F95) -> 0 | G96: =SUM(G94:G95) -> 0 | H96: =SUM(H94:H95) -> 0 | I96: =SUM(I94:I95) -> 0
F97: =$E94+$E95 -> 80 | G97: =$E94+$E95 -> 80 | H97: =$E94+$E95 -> 80 | I97: =SUM(F97:H97) -> 240 | J97: =SUM(J94:J95) -> 240 | K97: =SUM(K94:K95) -> 240
F98: =SUM(F96:F97) -> 80 | G98: =SUM(G96:G97) -> 80 | H98: =SUM(H96:H97) -> 80 | I98: =SUM(I96:I97) -> 240
F99: =2-F106 -> 0 | G99: =2-G106 -> 0 | H99: =2-H106 -> 0 | I99: =2-I106 -> 0 | L99: =SUM(L94:L98)+SUM(F99:I99) -> 2
B101: 10 | C101: 102 | D101: =VLOOKUP(C101,playstats,2) -> Karl King | E101: =VLOOKUP(C101,playstats,6) -> 42 | J101: =E101*3 -> 126 | K101: =I101+J101 -> 126 | L101: =IF(K101>K94,2,IF(K101=K94,1,0)) -> 0
C102: 101 | D102: =VLOOKUP(C102,playstats,2) -> Kevin King | E102: =VLOOKUP(C102,playstats,6) -> 49 | J102: =E102*3 -> 147 | K102: =I102+J102 -> 147 | L102: =IF(K102>K95,2,IF(K102=K95,1,0)) -> 2
F103: =SUM(F101:F102) -> 0 | G103: =SUM(G101:G102) -> 0 | H103: =SUM(H101:H102) -> 0 | I103: =SUM(I101:I102) -> 0
F104: =$E101+$E102 -> 91 | G104: =$E101+$E102 -> 91 | H104: =$E101+$E102 -> 91 | I104: =SUM(F104:H104) -> 273 | J104: =SUM(J101:J102) -> 273 | K104: =SUM(K101:K102) -> 273
F105: =SUM(F103:F104) -> 91 | G105: =SUM(G103:G104) -> 91 | H105: =SUM(H103:H104) -> 91 | I105: =SUM(I103:I104) -> 273
F106: =IF(F105>F98,2,IF(F105=F98,1,0)) -> 2 | G106: =IF(G105>G98,2,IF(G105=G98,1,0)) -> 2 | H106: =IF(H105>H98,2,IF(H105=H98,1,0)) -> 2 | I106: =IF(I105>I98,2,IF(I105=I98,1,0)) -> 2 | L106: =SUM(L101:L105)+SUM(F106:I106) -> 10
A109: 8 | B109: 1 | C109: 11 | D109: =VLOOKUP(C109,playstats,2) -> Chris Woodward | E109: =VLOOKUP(C109,playstats,6) -> 38 | J109: =E109*3 -> 114 | K109: =I109+J109 -> 114 | L109: =2-L116 -> 0
C110: 12 | D110: =VLOOKUP(C110,playstats,2) -> Bunz Hughes | E110: =VLOOKUP(C110,playstats,6) -> 43 | J110: =E110*3 -> 129 | K110: =I110+J110 -> 129 | L110: =2-L117 -> 0
F111: =SUM(F109:F110) -> 0 | G111: =SUM(G109:G110) -> 0 | H111: =SUM(H109:H110) -> 0 | I111: =SUM(I109:I110) -> 0
F112: =$E109+$E110 -> 81 | G112: =$E109+$E110 -> 81 | H112: =$E109+$E110 -> 81 | I112: =SUM(F112:H112) -> 243 | J112: =SUM(J109:J110) -> 243 | K112: =SUM(K109:K110) -> 243
F113: =SUM(F111:F112) -> 81 | G113: =SUM(G111:G112) -> 81 | H113: =SUM(H111:H112) -> 81 | I113: =SUM(I111:I112) -> 243
F114: =2-F121 -> 0 | G114: =2-G121 -> 0 | H114: =2-H121 -> 0 | I114: =2-I121 -> 0 | L114: =SUM(L109:L113)+SUM(F114:I114) -> 0
B116: 10 | C116: 102 | D116: =VLOOKUP(C116,playstats,2) -> Karl King | E116: =VLOOKUP(C116,playstats,6) -> 42 | J116: =E116*3 -> 126 | K116: =I116+J116 -> 126 | L116: =IF(K116>K109,2,IF(K116=K109,1,0)) -> 2
C117: 101 | D117: =VLOOKUP(C117,playstats,2) -> Kevin King | E117: =VLOOKUP(C117,playstats,6) -> 49 | J117: =E117*3 -> 147 | K117: =I117+J117 -> 147 | L117: =IF(K117>K110,2,IF(K117=K110,1,0)) -> 2
F118: =SUM(F116:F117) -> 0 | G118: =SUM(G116:G117) -> 0 | H118: =SUM(H116:H117) -> 0 | I118: =SUM(I116:I117) -> 0
F119: =$E116+$E117 -> 91 | G119: =$E116+$E117 -> 91 | H119: =$E116+$E117 -> 91 | I119: =SUM(F119:H119) -> 273 | J119: =SUM(J116:J117) -> 273 | K119: =SUM(K116:K117) -> 273
F120: =SUM(F118:F119) -> 91 | G120: =SUM(G118:G119) -> 91 | H120: =SUM(H118:H119) -> 91 | I120: =SUM(I118:I119) -> 273
F121: =IF(F120>F113,2,IF(F120=F113,1,0)) -> 2 | G121: =IF(G120>G113,2,IF(G120=G113,1,0)) -> 2 | H121: =IF(H120>H113,2,IF(H120=H113,1,0)) -> 2 | I121: =IF(I120>I113,2,IF(I120=I113,1,0)) -> 2 | L121: =SUM(L116:L120)+SUM(F121:I121) -> 12

Sheet players
D1: Handicap Calc: | E1: 24 | F1: 3442 | H1: =IF(-INT((F1/E1-200)*0.75)<75,-INT((F1/E1-200)*0.75),75) -> 43
C3: playstats | I3: Game | K3: Series | O3: Previous week | U3: Game | W3: Series | AA3: New High Scores | AF3: Game | AH3: Series
E4: Games | F4: Pins | G4: Avge | H4: Hcap | I4: Scr | J4: Hcap | K4: Scr | L4: Hcap | Q4: Games | R4: Pins | S4: Avge | T4: Hcap | U4: Scr | V4: Hcap | W4: Scr | X4: Hcap | AB4: Games | AC4: Pins | AD4: Avge | AE4: Hcap | AF4: Scr | AG4: Hcap | AH4: Scr | AI4: Hcap
B5: 1 | C5: 11 | D5: Chris Woodward | E5: 24 | F5: =3964-363 -> 3601 | G5: =F5/E5 -> 150.0416667 | H5: 38 | I5: 204 | J5: 250 | K5: 515 | L5: 644 | O5: 11 | P5: Chris Woodward | Q5: 24 | R5: =3964-363 -> 3601 | S5: =R5/Q5 -> 150.0416667 | T5: 38 | U5: 204 | V5: 250 | W5: 515 | X5: 644 | Z5: 11 | AA5: Chris Woodward | AB5: =E5-Q5 -> 0 | AC5: =F5-R5 -> 0 | AD5: 0 | AE5: 0 | AF5: 0 | AG5: 0 | AH5: 0 | AI5: 0
B6: 2 | C6: 12 | D6: Bunz Hughes | E6: 24 | F6: =3792-345 -> 3447 | G6: =F6/E6 -> 143.625 | H6: 43 | I6: 184 | J6: 229 | K6: 472 | L6: 639 | O6: 12 | P6: Bunz Hughes | Q6: 24 | R6: =3792-345 -> 3447 | S6: =R6/Q6 -> 143.625 | T6: 43 | U6: 184 | V6: 229 | W6: 472 | X6: 639 | Z6: 12 | AA6: Bunz Hughes | AB6: =E6-Q6 -> 0 | AC6: 0 | AD6: 0 | AE6: 0 | AF6: 0 | AG6: 0 | AH6: 0 | AI6: 0
B7: 3 | C7: 21 | D7: Carl Briggs | E7: 9 | F7: 1394 | G7: 154.8888889 | H7: 34 | I7: 179 | J7: 211 | K7: 482 | L7: 578 | O7: 21 | P7: Carl Briggs | Q7: 9 | R7: 1394 | S7: 154.8888889 | T7: 34 | U7: 179 | V7: 211 | W7: 482 | X7: 578 | Z7: 21 | AA7: Carl Briggs | AB7: 0 | AC7: 0 | AD7: 0 | AE7: 0 | AF7: 0 | AG7: 0 | AH7: 0 | AI7: 0
B8: 4 | C8: 22 | D8: Gary Wileman | E8: 9 | F8: 1308 | G8: 145.3333333 | H8: 41 | I8: 166 | J8: 222 | K8: 492 | L8: 636 | O8: 22 | P8: Gary Wileman | Q8: 9 | R8: 1308 | S8: 145.3333333 | T8: 41 | U8: 166 | V8: 222 | W8: 492 | X8: 636 | Z8: 22 | AA8: Gary Wileman | AB8: 0 | AC8: 0 | AD8: 0 | AE8: 0 | AF8: 0 | AG8: 0 | AH8: 0 | AI8: 0
B9: 5 | C9: 23 | D9: Nathon Ferrie | E9: 6 | F9: 929 | G9: 154.8333333 | H9: 34 | I9: 197 | J9: 237 | K9: 488 | L9: 608 | O9: 23 | P9: Nathon Ferrie | Q9: 6 | R9: 929 | S9: 154.8333333 | T9: 34 | U9: 197 | V9: 237 | W9: 488 | X9: 608 | Z9: 23 | AA9: Nathon Ferrie | AB9: 0 | AC9: 0 | AD9: 0 | AE9: 0 | AF9: 0 | AG9: 0 | AH9: 0 | AI9: 0
B10: 6 | C10: 31 | D10: Sarah Shellard | E10: 24 | F10: 3254 | G10: 135.5833333 | H10: 49 | I10: 181 | J10: 233 | K10: 443 | L10: 591 | O10: 31 | P10: Sarah Shellard | Q10: 21 | R10: =3194-368 -> 2826 | S10: =R10/Q10 -> 134.5714286 | T10: 50 | U10: 181 | V10: 233 | W10: 443 | X10: 591 | Z10: 31 | AA10: Sarah Shellard | AB10: 3 | AC10: 428 | AD10: 1.011904762 | AE10: -1 | AF10: 0 | AG10: 0 | AH10: 0 | AI10: 0
B11: 7 | C11: 32 | D11: Ethan Taylor | E11: 21 | F11: =3344-458 -> 2886 | G11: =F11/E11 -> 137.4285714 | H11: 47 | I11: 172 | J11: 224 | K11: 475 | L11: 619 | O11: 32 | P11: Ethan Taylor | Q11: 21 | R11: =3344-458 -> 2886 | S11: 137.4285714 | T11: 47 | U11: 172 | V11: 224 | W11: 475 | X11: 619 | Z11: 32 | AA11: Ethan Taylor | AB11: 0 | AC11: 0 | AD11: 0 | AE11: 0 | AF11: 0 | AG11: 0 | AH11: 0 | AI11: 0
B12: 8 | C12: 33 | D12: Owen Campbell | E12: 6 | F12: 802 | G12: 133.6666667 | H12: 50 | I12: 212 | J12: 242 | K12: 480 | L12: 570 | O12: 33 | P12: Owen Campbell | Q12: 3 | R12: 480 | S12: 160 | T12: 30 | U12: 212 | V12: 242 | W12: 480 | X12: 570 | Z12: 33 | AA12: Owen Campbell | AB12: 3 | AC12: 322 | AD12: -26.33333333 | AE12: 20 | AF12: 0 | AG12: 0 | AH12: 0 | AI12: 0
B13: 9 | C13: 41 | D13: Lew Ashenden | E13: 27 | F13: 3498 | G13: 129.5555556 | H13: 53 | I13: 204 | J13: 258 | K13: 422 | L13: 596 | O13: 41 | P13: Lew Ashenden | Q13: 24 | R13: 3103 | S13: 129.2916667 | T13: 54 | U13: 168 | V13: 226 | W13: 422 | X13: 596 | Z13: 41 | AA13: Lew Ashenden | AB13: 3 | AC13: 395 | AD13: 0.2638888889 | AE13: -1 | AF13: 36 | AG13: 32 | AH13: 0 | AI13: 0
B14: 10 | C14: 42 | D14: Chris Johnson | E14: 27 | F14: 3643 | G14: 134.9259259 | H14: 49 | I14: 188 | J14: 239 | K14: 483 | L14: 651 | O14: 42 | P14: Chris Johnson | Q14: 24 | R14: 3287 | S14: 136.9583333 | T14: 48 | U14: 188 | V14: 239 | W14: 483 | X14: 651 | Z14: 42 | AA14: Chris Johnson | AB14: 3 | AC14: 356 | AD14: -2.032407407 | AE14: 1 | AF14: 0 | AG14: 0 | AH14: 0 | AI14: 0
B15: 11 | C15: 51 | D15: Tony Pearce | E15: 27 | F15: 3594 | G15: 133.1111111 | H15: 51 | I15: 164 | J15: 215 | K15: 433 | L15: 592 | O15: 51 | P15: Tony Pearce | Q15: 24 | R15: 3180 | S15: 132.5 | T15: 51 | U15: 161 | V15: 214 | W15: 433 | X15: 592 | Z15: 51 | AA15: Tony Pearce | AB15: 3 | AC15: 414 | AD15: 0.6111111111 | AE15: 0 | AF15: 3 | AG15: 1 | AH15: 0 | AI15: 0
B16: 12 | C16: 52 | D16: Richard Lester | E16: 24 | F16: 3885 | G16: 161.875 | H16: 29 | I16: 194 | J16: 223 | K16: 515 | L16: 596 | O16: 52 | P16: Richard Lester | Q16: 24 | R16: 3885 | S16: 161.875 | T16: 29 | U16: 194 | V16: 223 | W16: 515 | X16: 596 | Z16: 52 | AA16: Richard Lester | AB16: 0 | AC16: 0 | AD16: 0 | AE16: 0 | AF16: 0 | AG16: 0 | AH16: 0 | AI16: 0
B17: 13 | C17: 61 | D17: Diane MacFarlane | E17: 27 | F17: 3934 | G17: 145.7037037 | H17: 41 | I17: 191 | J17: 231 | K17: 520 | L17: 640 | O17: 61 | P17: Diane MacFarlane | Q17: 24 | R17: 3522 | S17: 146.75 | T17: 40 | U17: 191 | V17: 231 | W17: 520 | X17: 640 | Z17: 61 | AA17: Diane MacFarlane | AB17: 3 | AC17: 412 | AD17: -1.046296296 | AE17: 1 | AF17: 0 | AG17: 0 | AH17: 0 | AI17: 0
B18: 14 | C18: 62 | D18: Keith MacFarlane | E18: 27 | F18: 4341 | G18: 160.7777778 | H18: 30 | I18: 207 | J18: 237 | K18: 567 | L18: 657 | O18: 62 | P18: Keith MacFarlane | Q18: 24 | R18: 3909 | S18: 162.875 | T18: 28 | U18: 207 | V18: 237 | W18: 567 | X18: 657 | Z18: 62 | AA18: Keith MacFarlane | AB18: 3 | AC18: 432 | AD18: -2.097222222 | AE18: 2 | AF18: 0 | AG18: 0 | AH18: 0 | AI18: 0
B19: 15 | C19: 63 | D19: Mick King | O19: 63 | P19: Mick King | Z19: 63 | AA19: Mick King | AB19: 0 | AC19: 0 | AD19: 0 | AE19: 0 | AF19: 0 | AG19: 0 | AH19: 0 | AI19: 0
B20: 16 | C20: 71 | D20: Steve Emmony | E20: 24 | F20: 3927 | G20: 163.625 | H20: 28 | I20: 227 | J20: 253 | K20: 571 | L20: 649 | O20: 71 | P20: Steve Emmony | Q20: 21 | R20: 3506 | S20: 166.952381 | T20: 25 | U20: 227 | V20: 253 | W20: 571 | X20: 649 | Z20: 71 | AA20: Steve Emmony | AB20: 3 | AC20: 421 | AD20: -3.327380952 | AE20: 3 | AF20: 0 | AG20: 0 | AH20: 0 | AI20: 0
B21: 17 | C21: 72 | D21: Terry Emmony | E21: 21 | F21: 3139 | G21: 149.4761905 | H21: 38 | I21: 189 | J21: 228 | K21: 493 | L21: 619 | O21: 72 | P21: Terry Emmony | Q21: 18 | R21: 2687 | S21: 149.2777778 | T21: 39 | U21: 189 | V21: 228 | W21: 493 | X21: 619 | Z21: 72 | AA21: Terry Emmony | AB21: 3 | AC21: =F21-R21 -> 452 | AD21: =G21-S21 -> 0.1984126984 | AE21: =H21-T21 -> -1 | AF21: =I21-U21 -> 0 | AG21: =J21-V21 -> 0 | AH21: =K21-W21 -> 0 | AI21: =L21-X21 -> 0
B22: 18 | C22: 73 | D22: Martin Cook | E22: 9 | F22: 1304 | G22: 144.8888889 | H22: 42 | I22: 199 | J22: 249 | K22: 504 | L22: 654 | O22: 73 | P22: Martin Cook | Q22: 9 | R22: 1304 | S22: 144.8888889 | T22: 42 | U22: 199 | V22: 249 | W22: 504 | X22: 654 | Z22: 73 | AA22: Martin Cook | AB22: 0 | AC22: 0 | AD22: 0 | AE22: 0 | AF22: 0 | AG22: 0 | AH22: 0 | AI22: 0
B23: 19 | C23: 81 | D23: Paul Simmons | E23: 15 | F23: 2124 | G23: 141.6 | H23: 44 | I23: 188 | J23: 239 | K23: 469 | L23: 617 | O23: 81 | P23: Paul Simmons | Q23: 12 | R23: 1655 | S23: 137.9166667 | T23: 47 | U23: 188 | V23: 239 | W23: 464 | X23: 617 | Z23: 81 | AA23: Paul Simmons | AB23: 3 | AC23: 469 | AD23: 3.683333333 | AE23: -3 | AF23: 0 | AG23: 0 | AH23: 5 | AI23: 0
B24: 20 | C24: 82 | D24: Liz Lake | E24: 18 | F24: 2378 | G24: 132.1111111 | H24: 51 | I24: 167 | J24: 223 | K24: 439 | L24: 607 | O24: 82 | P24: Liz Lake | Q24: 15 | R24: 1984 | S24: 132.2666667 | T24: 51 | U24: 167 | V24: 223 | W24: 439 | X24: 607 | Z24: 82 | AA24: Liz Lake | AB24: 3 | AC24: 394 | AD24: -0.1555555556 | AE24: 0 | AF24: 0 | AG24: 0 | AH24: 0 | AI24: 0
B25: 21 | C25: 83 | D25: Donna Smith | E25: 21 | F25: 2701 | G25: 128.6190476 | H25: 54 | I25: 182 | J25: 241 | K25: 482 | L25: 659 | O25: 83 | P25: Donna Smith | Q25: 21 | R25: 2701 | S25: 128.6190476 | T25: 54 | U25: 182 | V25: 241 | W25: 482 | X25: 659 | Z25: 83 | AA25: Donna Smith | AB25: 0 | AC25: 0 | AD25: 0 | AE25: 0 | AF25: 0 | AG25: 0 | AH25: 0 | AI25: 0
B26: 22 | C26: 91 | D26: Karen Davies | E26: 15 | F26: 1875 | G26: 125 | H26: 57 | I26: 159 | J26: 213 | K26: 421 | L26: 562 | O26: 91 | P26: Karen Davies | Q26: 15 | R26: 1875 | S26: 125 | T26: 57 | U26: 159 | V26: 213 | W26: 421 | X26: 562 | Z26: 91 | AA26: Karen Davies | AB26: 0 | AC26: 0 | AD26: 0 | AE26: 0 | AF26: 0 | AG26: 0 | AH26: 0 | AI26: 0
B27: 23 | C27: 92 | D27: Martin Lapidge | E27: 24 | F27: 3438 | G27: 143.25 | H27: 43 | I27: 192 | J27: 238 | K27: 519 | L27: 657 | O27: 92 | P27: Martin Lapidge | Q27: 21 | R27: =3359-440 -> 2919 | S27: =R27/Q27 -> 139 | T27: 46 | U27: 183 | V27: 231 | W27: 496 | X27: 640 | Z27: 92 | AA27: Martin Lapidge | AB27: 3 | AC27: 519 | AD27: 4.25 | AE27: -3 | AF27: 9 | AG27: 7 | AH27: 23 | AI27: 17
B28: 24 | C28: 93 | D28: Terry Highton | E28: 12 | F28: 1905 | G28: 158.75 | H28: 31 | I28: 198 | J28: 235 | K28: 543 | L28: 654 | O28: 93 | P28: Terry Highton | Q28: 9 | R28: =1811-449 -> 1362 | S28: 151.3333333 | T28: 37 | U28: 186 | V28: 229 | W28: 520 | X28: 649 | Z28: 93 | AA28: Terry Highton | AB28: 3 | AC28: 543 | AD28: 7.416666667 | AE28: -6 | AF28: 12 | AG28: 6 | AH28: 23 | AI28: 5
B29: 25 | C29: 101 | D29: Kevin King | E29: 27 | F29: 3644 | G29: 134.962963 | H29: 49 | I29: 194 | J29: 242 | K29: 443 | L29: 587 | O29: 101 | P29: Kevin King | Q29: 24 | R29: =3640-411 -> 3229 | S29: 134.5416667 | T29: 50 | U29: 194 | V29: 242 | W29: 443 | X29: 587 | Z29: 101 | AA29: Kevin King | AB29: 3 | AC29: 415 | AD29: 0.4212962963 | AE29: -1 | AF29: 0 | AG29: 0 | AH29: 0 | AI29: 0
B30: 26 | C30: 102 | D30: Karl King | E30: 27 | F30: 3895 | G30: 144.2592593 | H30: 42 | I30: 200 | J30: 243 | K30: 468 | L30: 594 | O30: 102 | P30: Karl King | Q30: 24 | R30: =3886-444 -> 3442 | S30: 143.4166667 | T30: 15 | U30: 175 | V30: 217 | W30: 468 | X30: 594 | Z30: 102 | AA30: Karl King | AB30: 3 | AC30: 453 | AD30: 0.8425925926 | AE30: 27 | AF30: 25 | AG30: 26 | AH30: 0 | AI30: 0
E32: =SUM(E5:E30) -> 495 | F32: =SUM(F5:F30) -> 70846 | G32: =F32/E32 -> 143.1232323 | H32: =G32-S32 -> -0.03454545455 | Q32: =SUM(Q5:Q30) -> 450 | R32: =SUM(R5:R30) -> 64421 | S32: =R32/Q32 -> 143.1577778 | AB32: =E32-Q32 -> 45 | AC32: =F32-R32 -> 6425 | AD32: =G32-S32 -> -0.03454545455
D33: playercount | E33: 26
D35: Working area
A36: b/f | C36: =VLOOKUP(playercount,playerbf,2) -> 102 | D36: =VLOOKUP(playercount,playerbf,3) -> Karl King | E36: =VLOOKUP(playercount,playerbf,4) -> 27 | F36: =VLOOKUP(playercount,playerbf,5) -> 3895 | G36: =VLOOKUP(playercount,playerbf,6) -> 144.2592593 | H36: =VLOOKUP(playercount,playerbf,7) -> 42 | I36: =VLOOKUP(playercount,playerbf,8) -> 200 | J36: =VLOOKUP(playercount,playerbf,9) -> 243 | K36: =VLOOKUP(playercount,playerbf,10) -> 468 | L36: =VLOOKUP(playercount,playerbf,11) -> 594
A37: week | B37: 5 | C37: =VLOOKUP(B37,playbase,2) -> 102 | E37: 3 | F37: =VLOOKUP(B37,playbase,5) -> 453 | G37: =VLOOKUP(B37,playbase,6) -> 151 | H37: =VLOOKUP(B37,playbase,7) -> 42 | I37: =VLOOKUP(B37,playbase,8) -> 200 | J37: =VLOOKUP(B37,playbase,9) -> 242 | K37: =VLOOKUP(B37,playbase,10) -> 453 | L37: =VLOOKUP(B37,playbase,11) -> 579
A38: Back match | B38: .
A39: c/f | C39: =C36 -> 102 | D39: =D36 -> Karl King | E39: =SUM(E36:E38) -> 30 | F39: =SUM(F36:F38) -> 4348 | G39: =F39/E39 -> 144.9333333 | H39: =IF(-INT((F39/E39-200)*0.75)<75,-INT((F39/E39-200)*0.75),75) -> 42 | I39: =MAX(I36:I38) -> 200 | J39: =MAX(J36:J38) -> 243 | K39: =MAX(K36:K38) -> 468 | L39: =MAX(L36:L38) -> 594
C42: playbase | I42: Game | K42: Series
E43: Games | F43: Pins | G43: Avge | H43: Hcap | I43: Scr | J43: Hcap | K43: Scr | L43: Hcap
B44: 1 | C44: =results!C49 -> 81 | D44: =VLOOKUP(C44,playstats,2) -> Paul Simmons | E44: 3 | F44: =results!I49 -> 469 | G44: =F44/E44 -> 156.3333333 | H44: =results!E49 -> 44 | I44: =MAX(results!F49:H49) -> 159 | J44: =I44+H44 -> 203 | K44: =results!I49 -> 469 | L44: =K44+(3*H44) -> 601
B45: 2 | C45: =results!C50 -> 82 | D45: Liz Lake | E45: 3 | F45: =results!I50 -> 394 | G45: 131.3333333 | H45: =results!E50 -> 51 | I45: =MAX(results!F50:H50) -> 143 | J45: 194 | K45: =results!I50 -> 394 | L45: 547
B46: 3 | C46: =results!C57 -> 72 | D46: Terry Emmony | E46: 3 | F46: =results!I57 -> 452 | G46: 150.6666667 | H46: =results!E57 -> 38 | I46: =MAX(results!F57:H57) -> 179 | J46: 217 | K46: =results!I57 -> 452 | L46: 566
B47: 4 | C47: =results!C56 -> 71 | D47: Steve Emmony | E47: 3 | F47: =results!I56 -> 421 | G47: 140.3333333 | H47: =results!E56 -> 28 | I47: =MAX(results!F56:H56) -> 149 | J47: 177 | K47: =results!I56 -> 421 | L47: 505
B48: 5 | C48: =results!C19 -> 102 | D48: Karl King | E48: 3 | F48: =results!I19 -> 453 | G48: 151 | H48: =results!E19 -> 42 | I48: =MAX(results!F19:H19) -> 200 | J48: 242 | K48: =results!I19 -> 453 | L48: 579
B49: 6 | C49: =results!C20 -> 101 | D49: Kevin King | E49: 3 | F49: =results!I20 -> 415 | G49: 138.3333333 | H49: =results!E20 -> 49 | I49: =MAX(results!F20:H20) -> 179 | J49: 228 | K49: =results!I20 -> 415 | L49: 562
B50: 7 | C50: =results!C4 -> 41 | D50: Lew Ashenden | E50: 3 | F50: =results!I4 -> 395 | G50: 131.6666667 | H50: =results!E4 -> 53 | I50: =MAX(results!F4:H4) -> 204 | J50: 257 | K50: =results!I4 -> 395 | L50: 554
B51: 8 | C51: =results!C5 -> 42 | D51: Chris Johnson | E51: 3 | F51: =results!I5 -> 356 | G51: 118.6666667 | H51: =results!E5 -> 49 | I51: =MAX(results!F5:H5) -> 139 | J51: 188 | K51: =results!I5 -> 356 | L51: 503
B52: 9 | C52: =results!C34 -> 61 | D52: Diane MacFarlane | E52: 3 | F52: =results!I34 -> 412 | G52: 137.3333333 | H52: =results!E34 -> 41 | I52: =MAX(results!F34:H34) -> 144 | J52: 185 | K52: =results!I34 -> 412 | L52: 535
B53: 10 | C53: =results!C35 -> 62 | D53: Keith MacFarlane | E53: 3 | F53: =results!I35 -> 432 | G53: 144 | H53: =results!E35 -> 30 | I53: =MAX(results!F35:H35) -> 175 | J53: 205 | K53: =results!I35 -> 432 | L53: 522
B54: 11 | C54: =results!C11 -> 31 | D54: Sarah Shellard | E54: 3 | F54: =results!I11 -> 428 | G54: 142.6666667 | H54: =results!E11 -> 49 | I54: =MAX(results!F11:H11) -> 156 | J54: 205 | K54: =results!I11 -> 428 | L54: 575
B55: 12 | C55: =results!C12 -> 33 | D55: Owen Campbell | E55: 3 | F55: =results!I12 -> 322 | G55: 107.3333333 | H55: =results!E12 -> 50 | I55: =MAX(results!F12:H12) -> 135 | J55: 185 | K55: =results!I12 -> 322 | L55: 472
B56: 13 | C56: =results!C41 -> 51 | D56: Tony Pearce | E56: 3 | F56: =results!I41 -> 414 | G56: 138 | H56: =results!E41 -> 51 | I56: =MAX(results!F41:H41) -> 164 | J56: 215 | K56: =results!I41 -> 414 | L56: 567
B57: 14 | C57: =results!C42 -> 52 | D57: Richard Lester | E57: 3 | F57: =results!I42 -> 387 | G57: 129 | H57: =results!E42 -> 29 | I57: =MAX(results!F42:H42) -> 129 | J57: 158 | K57: =results!I42 -> 387 | L57: 474
B58: 15 | C58: =results!C27 -> 93 | D58: Terry Highton | E58: 3 | F58: =results!I27 -> 543 | G58: 181 | H58: =results!E27 -> 31 | I58: =MAX(results!F27:H27) -> 198 | J58: 229 | K58: =results!I27 -> 543 | L58: 636
B59: 16 | C59: =results!C26 -> 92 | D59: Martin Lapidge | E59: 3 | F59: =results!I26 -> 519 | G59: 173 | H59: =results!E26 -> 43 | I59: =MAX(results!F26:H26) -> 192 | J59: 235 | K59: =results!I26 -> 519 | L59: 648
B60: 17 | C60: =results!C64 -> 21 | D60: =VLOOKUP(C60,playstats,2) -> Carl Briggs | E60: 3 | F60: =results!I64 -> 0 | G60: =F60/E60 -> 0 | H60: =results!E64 -> 34 | I60: =MAX(results!F64:H64) -> 0 | J60: =I60+H60 -> 34 | K60: =results!I64 -> 0 | L60: =K60+(3*H60) -> 102
B61: 18 | C61: =results!C65 -> 23 | D61: Nathon Ferrie | E61: 3 | F61: =results!I65 -> 0 | G61: 0 | H61: =results!E65 -> 34 | I61: =MAX(results!F65:H65) -> 0 | J61: 34 | K61: =results!I65 -> 0 | L61: 102
B62: 19 | C62: =results!C71 -> 102 | D62: Karl King | E62: 3 | F62: =results!I71 -> 0 | G62: 0 | H62: =results!E71 -> 42 | I62: =MAX(results!F71:H71) -> 0 | J62: 42 | K62: =results!I71 -> 0 | L62: 126
B63: 20 | C63: =results!C72 -> 101 | D63: Kevin King | E63: 3 | F63: =results!I72 -> 0 | G63: 0 | H63: =results!E72 -> 49 | I63: =MAX(results!F72:H72) -> 0 | J63: 49 | K63: =results!I72 -> 0 | L63: 147
B64: 21 | C64: =results!C79 -> 92 | D64: Martin Lapidge | E64: 3 | F64: =results!I79 -> 0 | G64: 0 | H64: =results!E79 -> 43 | I64: =MAX(results!F79:H79) -> 0 | J64: 43 | K64: =results!I79 -> 0 | L64: 129
B65: 22 | C65: =results!C80 -> 91 | D65: Karen Davies | E65: 3 | F65: =results!I80 -> 0 | G65: 0 | H65: =results!E80 -> 57 | I65: =MAX(results!F80:H80) -> 0 | J65: 57 | K65: =results!I80 -> 0 | L65: 171
B66: 23 | C66: =results!C86 -> 102 | D66: Karl King | E66: 3 | F66: =results!I86 -> 0 | G66: 0 | H66: =results!E86 -> 42 | I66: =MAX(results!F86:H86) -> 0 | J66: 42 | K66: =results!I86 -> 0 | L66: 126
B67: 24 | C67: =results!C87 -> 101 | D67: Kevin King | E67: 3 | F67: =results!I87 -> 0 | G67: 0 | H67: =results!E87 -> 49 | I67: =MAX(results!F87:H87) -> 0 | J67: 49 | K67: =results!I87 -> 0 | L67: 147
B68: 25 | C68: =results!C94 -> 51 | D68: Tony Pearce | E68: 3 | F68: =results!I94 -> 0 | G68: 0 | H68: =results!E94 -> 51 | I68: =MAX(results!F94:H94) -> 0 | J68: 51 | K68: =results!I94 -> 0 | L68: 153
B69: 26 | C69: =results!C95 -> 52 | D69: Richard Lester | E69: 3 | F69: =results!I95 -> 0 | G69: 0 | H69: =results!E95 -> 29 | I69: =MAX(results!F95:H95) -> 0 | J69: 29 | K69: =results!I95 -> 0 | L69: 87
B70: 27 | C70: =results!C101 -> 102 | D70: Karl King | E70: 3 | F70: =results!I101 -> 0 | G70: 0 | H70: =results!E101 -> 42 | I70: =MAX(results!F101:H101) -> 0 | J70: 42 | K70: =results!I101 -> 0 | L70: 126
B71: 28 | C71: =results!C102 -> 101 | D71: Kevin King | E71: 3 | F71: =results!I102 -> 0 | G71: 0 | H71: =results!E102 -> 49 | I71: =MAX(results!F102:H102) -> 0 | J71: 49 | K71: =results!I102 -> 0 | L71: 147
B72: 29 | C72: =results!C109 -> 11 | D72: Chris Woodward | E72: 3 | F72: =results!I109 -> 0 | G72: 0 | H72: =results!E109 -> 38 | I72: =MAX(results!F109:H109) -> 0 | J72: 38 | K72: =results!I109 -> 0 | L72: 114
B73: 30 | C73: =results!C110 -> 12 | D73: Bunz Hughes | E73: 3 | F73: =results!I110 -> 0 | G73: 0 | H73: =results!E110 -> 43 | I73: =MAX(results!F110:H110) -> 0 | J73: 43 | K73: =results!I110 -> 0 | L73: 129
B74: 31 | C74: =results!C116 -> 102 | D74: Karl King | E74: 3 | F74: =results!I116 -> 0 | G74: 0 | H74: =results!E116 -> 42 | I74: =MAX(results!F116:H116) -> 0 | J74: 42 | K74: =results!I116 -> 0 | L74: 126
B75: 32 | C75: =results!C117 -> 101 | D75: Kevin King | E75: 3 | F75: =results!I117 -> 0 | G75: 0 | H75: =results!E117 -> 49 | I75: =MAX(results!F117:H117) -> 0 | J75: 49 | K75: =results!I117 -> 0 | L75: 147
F76: =SUM(F44:F75) -> 6812

Sheet teams
Z2: Last Week | AA2: 9 | AL2: New High Scores
C3: teams | N3: teamstats | P3: Points | T3: High Game | V3: High Series | Z3: teamstats | AB3: Points | AF3: High Game | AH3: High Series | AN3: Points | AR3: High Game | AT3: High Series
B4: 1 | C4: Hot Chris Bunz | D4: 11 | E4: Chris Woodward | F4: 12 | G4: Bunz Hughes | O4: Played | P4: Won | Q4: Lost | R4: Pins | S4: Avge | T4: Scratch | U4: Hcap | V4: Scratch | W4: Hcap | AA4: Played | AB4: Won | AC4: Lost | AD4: Pins | AE4: Avge | AF4: Scratch | AG4: Hcap | AH4: Scratch | AI4: Hcap | AM4: Played | AN4: Won | AO4: Lost | AP4: Pins | AQ4: Avge | AR4: Scratch | AS4: Hcap | AT4: Scratch | AU4: Hcap
B5: 2 | C5: Stealth Bowlers | D5: 21 | E5: Carl Briggs | F5: =D5+1 -> 22 | G5: Gary Wileman | H5: 23 | I5: Nathon Ferrie | M5: 1 | N5: Hot Chris Bunz | O5: 8 | P5: 64 | Q5: 32 | R5: 9373 | S5: 390.5416667 | T5: 352 | U5: 442 | V5: 958 | W5: 1225 | Y5: 1 | Z5: Hot Chris Bunz | AA5: 8 | AB5: 64 | AC5: 32 | AD5: 9373 | AE5: 390.5416667 | AF5: 352 | AG5: 442 | AH5: 958 | AI5: 1225 | AK5: 1 | AL5: Hot Chris Bunz | AM5: =O5-AA5 -> 0 | AN5: =P5-AB5 -> 0 | AO5: 0 | AP5: 0 | AQ5: 0 | AR5: 0 | AS5: 0 | AT5: 0 | AU5: 0
B6: 3 | C6: Chucklers | D6: 31 | E6: Sarah Shellard | F6: =D6+1 -> 32 | G6: Ethan Taylor | H6: 33 | I6: Owen Campbell | M6: 2 | N6: Stealth Bowlers | Y6: 2 | Z6: Stealth Bowlers | AA6: 4 | AB6: 40 | AC6: 8 | AD6: 4648 | AE6: 387.3333333 | AF6: 339 | AG6: 419 | AH6: 974 | AI6: 1214 | AK6: 2 | AL6: Stealth Bowlers
B7: 4 | C7: Boom | D7: 41 | E7: Lew Ashenden | F7: 42 | G7: Chris Johnson | M7: 3 | N7: Chucklers | O7: 9 | P7: 42 | Q7: 66 | R7: 9765 | S7: 361.6666667 | T7: 368 | U7: 446 | V7: 910 | W7: 1210 | Y7: 3 | Z7: Chucklers | AA7: 8 | AB7: 38 | AC7: 58 | AD7: 8775 | AE7: 365.625 | AF7: 368 | AG7: 446 | AH7: 910 | AI7: 1210 | AK7: 3 | AL7: Chucklers | AM7: =O7-AA7 -> 1 | AN7: 4 | AO7: 8 | AP7: 990 | AQ7: -3.958333333 | AR7: 0 | AS7: 0 | AT7: 0 | AU7: 0
B8: 5 | C8: Duo | D8: 51 | E8: Tony Pearce | F8: 52 | G8: Richard Lester | M8: 4 | N8: Boom | O8: 9 | P8: 59 | Q8: 49 | R8: 9997 | S8: 370.2592593 | T8: 343 | U8: 447 | V8: 905 | W8: 1232 | Y8: 4 | Z8: Boom | AA8: 8 | AB8: 51 | AC8: 45 | AD8: 8940 | AE8: 372.5 | AF8: 343 | AG8: 447 | AH8: 905 | AI8: 1232 | AK8: 4 | AL8: Boom | AM8: 1 | AN8: 8 | AO8: 4 | AP8: 1057 | AQ8: -2.240740741 | AR8: 0 | AS8: 0 | AT8: 0 | AU8: 0
B9: 6 | C9: Mac Too | D9: 61 | E9: Diane MacFarlane | F9: 62 | G9: Keith MacFarlane | H9: =F9+1 -> 63 | I9: Mick King | M9: 5 | N9: Duo | O9: 9 | P9: 56 | Q9: 52 | R9: 10011 | S9: 370.7777778 | T9: 323 | U9: 398 | V9: 916 | W9: 1153 | Y9: 5 | Z9: Duo | AA9: 8 | AB9: 52 | AC9: 44 | AD9: 8970 | AE9: 373.75 | AF9: 323 | AG9: 398 | AH9: 916 | AI9: 1153 | AK9: 5 | AL9: Duo | AM9: 1 | AN9: 4 | AO9: 8 | AP9: 1041 | AQ9: -2.972222222 | AR9: 0 | AS9: 0 | AT9: 0 | AU9: 0
B10: 7 | C10: Brothers Grimm | D10: =B10*10+1 -> 71 | E10: Steve Emmony | F10: 72 | G10: Terry Emmony | H10: =F10+1 -> 73 | I10: Martin Cook | M10: 6 | N10: Mac Too | O10: 9 | P10: 48 | Q10: 60 | R10: 9925 | S10: 367.5925926 | T10: 383 | U10: 433 | V10: 1004 | W10: 1154 | Y10: 6 | Z10: Mac Too | AA10: 8 | AB10: 40 | AC10: 56 | AD10: 8877 | AE10: 369.875 | AF10: 383 | AG10: 433 | AH10: 1004 | AI10: 1154 | AK10: 6 | AL10: Mac Too | AM10: 1 | AN10: 8 | AO10: 4 | AP10: 1048 | AQ10: -2.282407407 | AR10: 0 | AS10: 0 | AT10: 0 | AU10: 0
B11: 8 | C11: Hit & Miss | D11: 81 | E11: Paul Simmons | F11: 82 | G11: Liz Lake | H11: =F11+1 -> 83 | I11: Donna Smith | M11: 7 | N11: Brothers Grimm | O11: 9 | P11: 78 | Q11: 30 | R11: 10263 | S11: 380.1111111 | T11: 368 | U11: 457 | V11: 1006 | W11: 1263 | Y11: 7 | Z11: Brothers Grimm | AA11: 8 | AB11: 74 | AC11: 22 | AD11: 9198 | AE11: 383.25 | AF11: 368 | AG11: 457 | AH11: 1006 | AI11: 1263 | AK11: 7 | AL11: Brothers Grimm | AM11: 1 | AN11: 4 | AO11: 8 | AP11: 1065 | AQ11: -3.138888889 | AR11: 0 | AS11: 0 | AT11: 0 | AU11: 0
B12: 9 | C12: Just Friends | D12: =F12+1 -> 92 | E12: Martin Lapidge | F12: =B12*10+1 -> 91 | G12: Karen Davies | H12: =D12+1 -> 93 | I12: Terry Highton | M12: 8 | N12: Hit & Miss | O12: 9 | P12: 54 | Q12: 54 | R12: 10086 | S12: 373.5555556 | T12: 342 | U12: 457 | V12: 921 | W12: 1266 | Y12: 8 | Z12: Hit & Miss | AA12: 8 | AB12: 46 | AC12: 50 | AD12: 8929 | AE12: 372.0416667 | AF12: 342 | AG12: 457 | AH12: 921 | AI12: 1266 | AK12: 8 | AL12: Hit & Miss | AM12: 1 | AN12: 8 | AO12: 4 | AP12: 1157 | AQ12: 1.513888889 | AR12: 0 | AS12: 0 | AT12: 0 | AU12: 0
B13: 10 | C13: The Kings | D13: 102 | E13: Karl King | F13: 101 | G13: Kevin King | M13: 9 | N13: Just Friends | O13: 9 | P13: 48 | Q13: 60 | R13: 10149 | S13: 375.8888889 | T13: 358 | U13: 441 | V13: 1062 | W13: 1311 | Y13: 9 | Z13: Just Friends | AA13: 8 | AB13: 38 | AC13: 58 | AD13: 8838 | AE13: 368.25 | AF13: 353 | AG13: 431 | AH13: 913 | AI13: 1186 | AK13: 9 | AL13: Just Friends | AM13: 1 | AN13: 10 | AO13: 2 | AP13: 1311 | AQ13: 7.638888889 | AR13: 5 | AS13: 10 | AT13: 149 | AU13: 125
M14: 10 | N14: The Kings | O14: 9 | P14: 31 | Q14: 77 | R14: 9924 | S14: 367.5555556 | T14: 379 | U14: 471 | V14: 891 | W14: 1155 | Y14: 10 | Z14: The Kings | AA14: 8 | AB14: 29 | AC14: 67 | AD14: 8780 | AE14: 365.8333333 | AF14: 345 | AG14: 433 | AH14: 891 | AI14: 1155 | AK14: 10 | AL14: The Kings | AM14: 1 | AN14: 2 | AO14: 10 | AP14: 1144 | AQ14: 1.722222222 | AR14: 34 | AS14: 38 | AT14: 0 | AU14: 0
N15: Check Total | O15: =SUM(O5:O14) -> 80 | P15: =SUM(P5:P14) -> 480 | Q15: =SUM(Q5:Q14) -> 480 | R15: =SUM(R5:R14) -> 89493 | S15: =R15/(O15*3) -> 372.8875 | T15: =SUM(T5:T14) -> 3216 | U15: =SUM(U5:U14) -> 3992 | V15: =SUM(V5:V14) -> 8573 | W15: =SUM(W5:W14) -> 10969 | Z15: Check Total | AA15: =SUM(AA5:AA14) -> 76 | AB15: =SUM(AB5:AB14) -> 472 | AC15: =SUM(AC5:AC14) -> 440 | AD15: =SUM(AD5:AD14) -> 85328 | AE15: =AD15/(AA15*3) -> 374.245614 | AF15: =SUM(AF5:AF14) -> 3516 | AG15: =SUM(AG5:AG14) -> 4363 | AH15: =SUM(AH5:AH14) -> 9398 | AI15: =SUM(AI5:AI14) -> 12058
N17: teambase | P17: Points | T17: High Game | V17: Series | AQ17: Game | AS17: Series
O18: Played | P18: Won | Q18: Lost | R18: Pins | S18: Avge | T18: Scratch | U18: Hcap | V18: Scratch | W18: Hcap | AM18: Games | AN18: Pins | AO18: Avge | AP18: Hcap | AQ18: Scr | AR18: Hcap | AS18: Scr | AT18: Hcap
K19: 1 | L19: 8 | M19: =results!B11 -> 3 | N19: =VLOOKUP(M19,teams,2) -> Chucklers | O19: 1 | P19: =results!L16 -> 4 | Q19: =12-P19 -> 8 | R19: =results!I15 -> 1047 | S19: =R19/3 -> 349 | T19: =MAX(results!F13:'results'!H13) -> 291 | U19: =MAX(results!F15:'results'!H15) -> 390 | V19: =results!I13 -> 750 | W19: =results!I15 -> 1047 | AK19: 11 | AL19: Chris Woodward | AM19: 0 | AN19: 0 | AO19: 0 | AP19: 0 | AQ19: 0 | AR19: 0 | AS19: 0 | AT19: 0
L20: 6 | M20: =results!B4 -> 4 | N20: Boom | O20: 1 | P20: =results!L9 -> 8 | Q20: 4 | R20: =results!I8 -> 1057 | S20: 352.3333333 | T20: =MAX(results!F6:'results'!H6) -> 327 | U20: =MAX(results!F8:'results'!H8) -> 429 | V20: =results!I6 -> 751 | W20: =results!I8 -> 1057 | AK20: 12 | AL20: Bunz Hughes | AM20: 0 | AN20: 0 | AO20: 0 | AP20: 0 | AQ20: 0 | AR20: 0 | AS20: 0 | AT20: 0
K21: 2 | L21: 5 | M21: =results!B41 -> 5 | N21: Duo | O21: 1 | P21: =results!L46 -> 4 | Q21: 8 | R21: =results!I45 -> 1041 | S21: 347 | T21: =MAX(results!F43:'results'!H43) -> 293 | U21: =MAX(results!F45:'results'!H45) -> 373 | V21: =results!I43 -> 801 | W21: =results!I45 -> 1041 | AK21: 21 | AL21: Carl Briggs | AM21: 0 | AN21: 0 | AO21: 0 | AP21: 0 | AQ21: 0 | AR21: 0 | AS21: 0 | AT21: 0
L22: 1 | M22: =results!B34 -> 6 | N22: Mac Too | O22: 1 | P22: =results!L39 -> 8 | Q22: 4 | R22: =results!I38 -> 1057 | S22: 352.3333333 | T22: =MAX(results!F36:'results'!H36) -> 319 | U22: =MAX(results!F38:'results'!H38) -> 390 | V22: =results!I36 -> 844 | W22: =results!I38 -> 1057 | AK22: 22 | AL22: Gary Wileman | AM22: 0 | AN22: 0 | AO22: 0 | AP22: 0 | AQ22: 0 | AR22: 0 | AS22: 0 | AT22: 0
K23: 3 | L23: 4 | M23: =results!B56 -> 7 | N23: Brothers Grimm | O23: 1 | P23: =results!L61 -> 4 | Q23: 8 | R23: =results!I60 -> 1071 | S23: 357 | T23: =MAX(results!F58:'results'!H58) -> 328 | U23: =MAX(results!F60:'results'!H60) -> 394 | V23: =results!I58 -> 873 | W23: =results!I60 -> 1071 | AK23: 23 | AL23: Nathon Ferrie | AM23: 0 | AN23: 0 | AO23: 0 | AP23: 0 | AQ23: 0 | AR23: 0 | AS23: 0 | AT23: 0
L24: 2 | M24: =results!B49 -> 8 | N24: Hit & Miss | O24: 1 | P24: =results!L54 -> 8 | Q24: 4 | R24: =results!I53 -> 1148 | S24: 382.6666667 | T24: =MAX(results!F51:'results'!H51) -> 302 | U24: =MAX(results!F53:'results'!H53) -> 397 | V24: =results!I51 -> 863 | W24: =results!I53 -> 1148 | AK24: 31 | AL24: Sarah Shellard | AM24: 3 | AN24: 428 | AO24: 1.011904762 | AP24: -1 | AQ24: 0 | AR24: 0 | AS24: 0 | AT24: 0
K25: 4 | L25: 3 | M25: =results!B26 -> 9 | N25: Just Friends | O25: 1 | P25: =results!L31 -> 10 | Q25: 2 | R25: =results!I30 -> 1284 | S25: 428 | T25: =MAX(results!F28:'results'!H28) -> 358 | U25: =MAX(results!F30:'results'!H30) -> 432 | V25: =results!I28 -> 1062 | W25: =results!I30 -> 1284 | AK25: 32 | AL25: Ethan Taylor | AM25: 0 | AN25: 0 | AO25: 0 | AP25: 0 | AQ25: 0 | AR25: 0 | AS25: 0 | AT25: 0
L26: 7 | M26: =results!B19 -> 10 | N26: The Kings | O26: 1 | P26: =results!L24 -> 2 | Q26: 10 | R26: =results!I23 -> 1141 | S26: 380.3333333 | T26: =MAX(results!F21:'results'!H21) -> 379 | U26: =MAX(results!F23:'results'!H23) -> 470 | V26: =results!I21 -> 868 | W26: =results!I23 -> 1141 | AK26: 33 | AL26: Owen Campbell | AM26: 3 | AN26: 322 | AO26: -26.33333333 | AP26: 20 | AQ26: 0 | AR26: 0 | AS26: 0 | AT26: 0
K27: 5 | L27: 9 | M27: =results!B64 -> 2 | N27: =VLOOKUP(M27,teams,2) -> Stealth Bowlers | O27: 1 | P27: =results!L69 -> 0 | Q27: =12-P27 -> 12 | R27: =results!I68 -> 204 | S27: =R27/3 -> 68 | T27: =MAX(results!F66:'results'!H66) -> 0 | U27: =MAX(results!F68:'results'!H68) -> 68 | V27: =results!I66 -> 0 | W27: =results!I68 -> 204 | AK27: 41 | AL27: Lew Ashenden | AM27: 3 | AN27: 395 | AO27: 0.2638888889 | AP27: -1 | AQ27: 36 | AR27: 32 | AS27: 0 | AT27: 0
L28: 10 | M28: =results!B71 -> 10 | N28: The Kings | O28: 1 | P28: =results!L76 -> 12 | Q28: 0 | R28: =results!I75 -> 273 | S28: 91 | T28: =MAX(results!F73:'results'!H73) -> 0 | U28: =MAX(results!F75:'results'!H75) -> 91 | V28: =results!I73 -> 0 | W28: =results!I75 -> 273 | AK28: 42 | AL28: Chris Johnson | AM28: 3 | AN28: 356 | AO28: -2.032407407 | AP28: 1 | AQ28: 0 | AR28: 0 | AS28: 0 | AT28: 0
K29: 6 | L29: 11 | M29: =results!B79 -> 9 | N29: Just Friends | O29: 1 | P29: =results!L84 -> 12 | Q29: 0 | R29: =results!I83 -> 300 | S29: 100 | T29: =MAX(results!F81:'results'!H81) -> 0 | U29: =MAX(results!F83:'results'!H83) -> 100 | V29: =results!I81 -> 0 | W29: =results!I83 -> 300 | AK29: 51 | AL29: Tony Pearce | AM29: 3 | AN29: 414 | AO29: 0.6111111111 | AP29: 0 | AQ29: 3 | AR29: 1 | AS29: 0 | AT29: 0
L30: 12 | M30: =results!B86 -> 10 | N30: The Kings | O30: 1 | P30: =results!L91 -> 0 | Q30: 12 | R30: =results!I90 -> 273 | S30: 91 | T30: =MAX(results!F88:'results'!H88) -> 0 | U30: =MAX(results!F90:'results'!H90) -> 91 | V30: =results!I96 -> 0 | W30: =results!I90 -> 273 | AK30: 52 | AL30: Richard Lester | AM30: 0 | AN30: 0 | AO30: 0 | AP30: 0 | AQ30: 0 | AR30: 0 | AS30: 0 | AT30: 0
K31: 7 | L31: 13 | M31: =results!B94 -> 5 | N31: Duo | O31: 1 | P31: =results!L99 -> 2 | Q31: 10 | R31: =results!I98 -> 240 | S31: 80 | T31: =MAX(results!F96:'results'!H96) -> 0 | U31: =MAX(results!F98:'results'!H98) -> 80 | V31: =results!I96 -> 0 | W31: =results!I98 -> 240 | AK31: 61 | AL31: Diane MacFarlane | AM31: 3 | AN31: 412 | AO31: -1.046296296 | AP31: 1 | AQ31: 0 | AR31: 0 | AS31: 0 | AT31: 0
L32: 14 | M32: =results!B101 -> 10 | N32: The Kings | O32: 1 | P32: =results!L106 -> 10 | Q32: 2 | R32: =results!I105 -> 273 | S32: 91 | T32: =MAX(results!F103:'results'!H103) -> 0 | U32: =MAX(results!F66:'results'!H66) -> 0 | V32: =results!I103 -> 0 | W32: =results!I105 -> 273 | AK32: 62 | AL32: Keith MacFarlane | AM32: 3 | AN32: 432 | AO32: -2.097222222 | AP32: 2 | AQ32: 0 | AR32: 0 | AS32: 0 | AT32: 0
K33: 8 | L33: 15 | M33: =results!B109 -> 1 | N33: Hot Chris Bunz | O33: 1 | P33: =results!L114 -> 0 | Q33: 12 | R33: =results!I113 -> 243 | S33: 81 | T33: =MAX(results!F111:'results'!H111) -> 0 | U33: =MAX(results!F113:'results'!H113) -> 81 | V33: =results!I111 -> 0 | W33: =results!I113 -> 243 | AK33: 63 | AL33: Mick King | AM33: 0 | AN33: 0 | AO33: 0 | AP33: 0 | AQ33: 0 | AR33: 0 | AS33: 0 | AT33: 0
L34: 16 | M34: =results!B116 -> 10 | N34: The Kings | O34: 1 | P34: =results!L121 -> 12 | Q34: 0 | R34: =results!I120 -> 273 | S34: 91 | T34: =MAX(results!F118:'results'!H118) -> 0 | U34: =MAX(results!F68:'results'!H68) -> 68 | V34: =results!I118 -> 0 | W34: =results!I120 -> 273 | AK34: 71 | AL34: Steve Emmony | AM34: 3 | AN34: 421 | AO34: -3.327380952 | AP34: 3 | AQ34: 0 | AR34: 0 | AS34: 0 | AT34: 0
P35: =SUM(P19:P34) -> 96 | Q35: =SUM(Q19:Q34) -> 96 | R35: =SUM(R19:R34) -> 10925 | AK35: 72 | AL35: Terry Emmony | AM35: 3 | AN35: 452 | AO35: 0.1984126984 | AP35: -1 | AQ35: 0 | AR35: 0 | AS35: 0 | AT35: 0
T36: =RANK(1,T19:T34,0) ->  | AK36: 73 | AL36: Martin Cook | AM36: 0 | AN36: 0 | AO36: 0 | AP36: 0 | AQ36: 0 | AR36: 0 | AS36: 0 | AT36: 0
N37: teamcount | O37: 10 | AK37: 81 | AL37: Paul Simmons | AM37: 3 | AN37: 469 | AO37: 3.683333333 | AP37: -3 | AQ37: 0 | AR37: 0 | AS37: 5 | AT37: 0
AK38: 82 | AL38: Liz Lake | AM38: 3 | AN38: 394 | AO38: -0.1555555556 | AP38: 0 | AQ38: 0 | AR38: 0 | AS38: 0 | AT38: 0
N39: Working area | AK39: 83 | AL39: Donna Smith | AM39: 0 | AN39: 0 | AO39: 0 | AP39: 0 | AQ39: 0 | AR39: 0 | AS39: 0 | AT39: 0
K40: b/f | M40: =teamcount -> 10 | N40: =VLOOKUP(teamcount,teamstats,2) -> The Kings | O40: =VLOOKUP(teamcount,teamstats,3) -> 9 | P40: =VLOOKUP(teamcount,teamstats,4) -> 31 | Q40: =VLOOKUP(teamcount,teamstats,5) -> 77 | R40: =VLOOKUP(teamcount,teamstats,6) -> 9924 | S40: =VLOOKUP(teamcount,teamstats,7) -> 367.5555556 | T40: =VLOOKUP(teamcount,teamstats,8) -> 379 | U40: =VLOOKUP(teamcount,teamstats,9) -> 471 | V40: =VLOOKUP(teamcount,teamstats,10) -> 891 | W40: =VLOOKUP(teamcount,teamstats,11) -> 1155 | AK40: 91 | AL40: Karen Davies | AM40: 0 | AN40: 0 | AO40: 0 | AP40: 0 | AQ40: 0 | AR40: 0 | AS40: 0 | AT40: 0
K41: week | M41: =teamcount -> 10 | N41: =VLOOKUP(teamcount,teambase,2) -> The Kings | O41: =VLOOKUP(teamcount,teambase,3) -> 1 | P41: =VLOOKUP(teamcount,teambase,4) -> 2 | Q41: =VLOOKUP(teamcount,teambase,5) -> 10 | R41: =VLOOKUP(teamcount,teambase,6) -> 1141 | S41: =VLOOKUP(teamcount,teambase,7) -> 380.3333333 | T41: =VLOOKUP(teamcount,teambase,8) -> 379 | U41: =VLOOKUP(teamcount,teambase,9) -> 470 | V41: =VLOOKUP(teamcount,teambase,10) -> 868 | W41: =VLOOKUP(teamcount,teambase,11) -> 1141 | AK41: 92 | AL41: Martin Lapidge | AM41: 3 | AN41: 519 | AO41: 4.25 | AP41: -3 | AQ41: 9 | AR41: 7 | AS41: 23 | AT41: 17
K42: Back match | AK42: 93 | AL42: Terry Highton | AM42: 3 | AN42: 543 | AO42: 7.416666667 | AP42: -6 | AQ42: 12 | AR42: 6 | AS42: 23 | AT42: 5
K43: c/f | M43: =M41 -> 10 | N43: =N41 -> The Kings | O43: =SUM(O40:O42) -> 10 | P43: =SUM(P40:P42) -> 33 | Q43: =SUM(Q40:Q42) -> 87 | R43: =SUM(R40:R42) -> 11065 | S43: =R43/(O43*3) -> 368.8333333 | T43: =MAX(T40:T42) -> 379 | U43: =MAX(U40:U42) -> 471 | V43: =MAX(V40:V42) -> 891 | W43: =MAX(W40:W42) -> 1155 | AK43: 101 | AL43: Kevin King | AM43: 3 | AN43: 415 | AO43: 0.4212962963 | AP43: -1 | AQ43: 0 | AR43: 0 | AS43: 0 | AT43: 0
AK44: 102 | AL44: Karl King | AM44: 3 | AN44: 453 | AO44: 0.8425925926 | AP44: 27 | AQ44: 25 | AR44: 26 | AS44: 0 | AT44: 0
AM46: 24 | AN46: 3477 | AO46: 0.1043818466

Sheet reports
D1: front | X1: back
Y4: Players Averages
AC5: Game | AE5: Series | AH5: High Scores - League to date
C6: Monday Doubles League - Summer 2013 | O6: Results | Y6: Games | Z6: Pins | AA6: Avge | AB6: Hcap | AC6: Scr | AD6: Hcap | AE6: Scr | AF6: Hcap | AH6: Players | AJ6: Team | AM6: Copied from front page, for high scores
C7: ="League Table after Week "&results!F2&", "&"15 July" -> League Table after Week 10, 15 July | V7: 1 | W7: 71 | X7: Steve Emmony | Y7: 24 | Z7: 3927 | AA7: 163.625 | AB7: 28 | AC7: 227 | AD7: 253 | AE7: 571 | AF7: 649 | AH7: Scratch Game | AJ7: Scratch Game
O8: Boom | P8: 1057 | Q8: 8 | R8: Chucklers | S8: 4 | T8: 990 | V8: 2 | W8: 52 | X8: Richard Lester | Y8: 24 | Z8: 3885 | AA8: 161.875 | AB8: 29 | AC8: 194 | AD8: 223 | AE8: 515 | AF8: 596 | AH8: Steve Emmony | AI8: 227 | AJ8: Mac Too | AK8: 383
F9: Points | H9: Hcap | J9: High Game | L9: High Series | O9: The Kings | P9: 1144 | Q9: 2 | R9: Just Friends | S9: 10 | T9: 1311 | V9: 3 | W9: 62 | X9: Keith MacFarlane | Y9: 27 | Z9: 4341 | AA9: 160.7777778 | AB9: 30 | AC9: 207 | AD9: 237 | AE9: 567 | AF9: 657 | AH9: Owen Campbell | AI9: 212 | AJ9: The Kings | AK9: 379 | AO9: Points | AQ9: Hcap | AS9: High Game | AU9: High Series
E10: Played | F10: Won | G10: Lost | H10: Pins | I10: Avge | J10: Scratch | K10: Hcap | L10: Scratch | M10: Hcap | O10: Mac Too | P10: 1048 | Q10: 8 | R10: Duo | S10: 4 | T10: 1041 | V10: 4 | W10: 93 | X10: Terry Highton | Y10: 12 | Z10: 1905 | AA10: 158.75 | AB10: 31 | AC10: 198 | AD10: 235 | AE10: 543 | AF10: 654 | AH10: Keith MacFarlane | AI10: 207 | AJ10: Brothers Grimm | AK10: 368 | AN10: Played | AO10: Won | AP10: Lost | AQ10: Pins | AR10: Avge | AS10: Scratch | AT10: Hcap | AU10: Scratch | AV10: Hcap
C11: 1 | D11: Brothers Grimm | E11: 9 | F11: 78 | G11: 30 | H11: 10263 | I11: 380.1111111 | J11: 368 | K11: 457 | L11: 1006 | M11: 1263 | O11: Hit & Miss | P11: 1157 | Q11: 8 | R11: Brothers Grimm | S11: 4 | T11: 1065 | V11: 5 | W11: 21 | X11: Carl Briggs | Y11: 9 | Z11: 1394 | AA11: 154.8888889 | AB11: 34 | AC11: 179 | AD11: 211 | AE11: 482 | AF11: 578 | AH11: Chris Woodward | AI11: 204 | AJ11: Chucklers | AK11: 368 | AM11: Just Friends | AN11: 9 | AO11: 48 | AP11: 60 | AQ11: 10149 | AR11: 375.8888889 | AS11: 358 | AT11: 441 | AU11: 1062 | AV11: 1311
C12: 2 | D12: Hot Chris Bunz | E12: 8 | F12: 64 | G12: 32 | H12: 9373 | I12: 390.5416667 | J12: 352 | K12: 442 | L12: 958 | M12: 1225 | V12: 6 | W12: 23 | X12: Nathon Ferrie | Y12: 6 | Z12: 929 | AA12: 154.8333333 | AB12: 34 | AC12: 197 | AD12: 237 | AE12: 488 | AF12: 608 | AH12: Lew Ashenden | AI12: 204 | AJ12: Just Friends | AK12: 358 | AM12: Hit & Miss | AN12: 9 | AO12: 54 | AP12: 54 | AQ12: 10086 | AR12: 373.5555556 | AS12: 342 | AT12: 457 | AU12: 921 | AV12: 1266
C13: 3 | D13: Boom | E13: 9 | F13: 59 | G13: 49 | H13: 9997 | I13: 370.2592593 | J13: 343 | K13: 447 | L13: 905 | M13: 1232 | V13: 7 | W13: 11 | X13: Chris Woodward | Y13: 24 | Z13: 3601 | AA13: 150.0416667 | AB13: 38 | AC13: 204 | AD13: 250 | AE13: 515 | AF13: 644 | AH13: Scratch Series | AJ13: Scratch Series | AM13: Brothers Grimm | AN13: 9 | AO13: 78 | AP13: 30 | AQ13: 10263 | AR13: 380.1111111 | AS13: 368 | AT13: 457 | AU13: 1006 | AV13: 1263
C14: 4 | D14: Duo | E14: 9 | F14: 56 | G14: 52 | H14: 10011 | I14: 370.7777778 | J14: 323 | K14: 398 | L14: 916 | M14: 1153 | V14: 8 | W14: 72 | X14: Terry Emmony | Y14: 21 | Z14: 3139 | AA14: 149.4761905 | AB14: 38 | AC14: 189 | AD14: 228 | AE14: 493 | AF14: 619 | AH14: Steve Emmony | AI14: 571 | AJ14: Just Friends | AK14: 1062 | AM14: Boom | AN14: 9 | AO14: 59 | AP14: 49 | AQ14: 9997 | AR14: 370.2592593 | AS14: 343 | AT14: 447 | AU14: 905 | AV14: 1232
C15: 5 | D15: Hit & Miss | E15: 9 | F15: 54 | G15: 54 | H15: 10086 | I15: 373.5555556 | J15: 342 | K15: 457 | L15: 921 | M15: 1266 | V15: 9 | W15: 61 | X15: Diane MacFarlane | Y15: 27 | Z15: 3934 | AA15: 145.7037037 | AB15: 41 | AC15: 191 | AD15: 231 | AE15: 520 | AF15: 640 | AH15: Keith MacFarlane | AI15: 567 | AJ15: Brothers Grimm | AK15: 1006 | AM15: Hot Chris Bunz | AN15: 8 | AO15: 64 | AP15: 32 | AQ15: 9373 | AR15: 390.5416667 | AS15: 352 | AT15: 442 | AU15: 958 | AV15: 1225
C16: 6 | D16: Just Friends | E16: 9 | F16: 48 | G16: 60 | H16: 10149 | I16: 375.8888889 | J16: 358 | K16: 441 | L16: 1062 | M16: 1311 | V16: 10 | W16: 22 | X16: Gary Wileman | Y16: 9 | Z16: 1308 | AA16: 145.3333333 | AB16: 41 | AC16: 166 | AD16: 222 | AE16: 492 | AF16: 636 | AH16: Terry Highton | AI16: 543 | AJ16: Mac Too | AK16: 1004 | AM16: Chucklers | AN16: 9 | AO16: 42 | AP16: 66 | AQ16: 9765 | AR16: 361.6666667 | AS16: 368 | AT16: 446 | AU16: 910 | AV16: 1210
C17: 7 | D17: Mac Too | E17: 9 | F17: 48 | G17: 60 | H17: 9925 | I17: 367.5925926 | J17: 383 | K17: 433 | L17: 1004 | M17: 1154 | V17: 11 | W17: 73 | X17: Martin Cook | Y17: 9 | Z17: 1304 | AA17: 144.8888889 | AB17: 42 | AC17: 199 | AD17: 249 | AE17: 504 | AF17: 654 | AH17: Diane MacFarlane | AI17: 520 | AJ17: Hot Chris Bunz | AK17: 958 | AM17: The Kings | AN17: 9 | AO17: 31 | AP17: 77 | AQ17: 9924 | AR17: 367.5555556 | AS17: 379 | AT17: 471 | AU17: 891 | AV17: 1155
C18: 8 | D18: Chucklers | E18: 9 | F18: 42 | G18: 66 | H18: 9765 | I18: 361.6666667 | J18: 368 | K18: 446 | L18: 910 | M18: 1210 | O18: High Scores this week | V18: 12 | W18: 102 | X18: Karl King | Y18: 27 | Z18: 3895 | AA18: 144.2592593 | AB18: 42 | AC18: 200 | AD18: 243 | AE18: 468 | AF18: 594 | AH18: Martin Lapidge | AI18: 519 | AJ18: Hit & Miss | AK18: 921 | AM18: Mac Too | AN18: 9 | AO18: 48 | AP18: 60 | AQ18: 9925 | AR18: 367.5925926 | AS18: 383 | AT18: 433 | AU18: 1004 | AV18: 1154
C19: 9 | D19: The Kings | E19: 9 | F19: 31 | G19: 77 | H19: 9924 | I19: 367.5555556 | J19: 379 | K19: 471 | L19: 891 | M19: 1155 | O19: Players | R19: Team | V19: 13 | W19: 12 | X19: Bunz Hughes | Y19: 24 | Z19: 3447 | AA19: 143.625 | AB19: 43 | AC19: 184 | AD19: 229 | AE19: 472 | AF19: 639 | AH19: Handicap Game | AJ19: Handicap Game | AM19: Duo | AN19: 9 | AO19: 56 | AP19: 52 | AQ19: 10011 | AR19: 370.7777778 | AS19: 323 | AT19: 398 | AU19: 916 | AV19: 1153
C20: 10 | D20: Stealth Bowlers | O20: Scratch Game | R20: Scratch Game | V20: 14 | W20: 92 | X20: Martin Lapidge | Y20: 24 | Z20: 3438 | AA20: 143.25 | AB20: 43 | AC20: 192 | AD20: 238 | AE20: 519 | AF20: 657 | AH20: Lew Ashenden | AI20: 258 | AJ20: The Kings | AK20: 471 | AM20: Stealth Bowlers
O21: Lew Ashenden | P21: 204 | R21: The Kings | S21: 379 | V21: 15 | W21: 81 | X21: Paul Simmons | Y21: 15 | Z21: 2124 | AA21: 141.6 | AB21: 44 | AC21: 188 | AD21: 239 | AE21: 469 | AF21: 617 | AH21: Steve Emmony | AI21: 253 | AJ21: Brothers Grimm | AK21: 457
O22: Karl King | P22: 200 | R22: Just Friends | S22: 358 | V22: 16 | W22: 32 | X22: Ethan Taylor | Y22: 21 | Z22: 2886 | AA22: 137.4285714 | AB22: 47 | AC22: 172 | AD22: 224 | AE22: 475 | AF22: 619 | AH22: Chris Woodward | AI22: 250 | AJ22: Hit & Miss | AK22: 457
O23: Terry Highton | P23: 198 | R23: Brothers Grimm | S23: 328 | V23: 17 | W23: 31 | X23: Sarah Shellard | Y23: 24 | Z23: 3254 | AA23: 135.5833333 | AB23: 49 | AC23: 181 | AD23: 233 | AE23: 443 | AF23: 591 | AH23: Martin Cook | AI23: 249 | AJ23: Boom | AK23: 447
O24: Scratch Series | R24: Scratch Series | V24: 18 | W24: 101 | X24: Kevin King | Y24: 27 | Z24: 3644 | AA24: 134.962963 | AB24: 49 | AC24: 194 | AD24: 242 | AE24: 443 | AF24: 587 | AH24: Karl King | AI24: 243 | AJ24: Chucklers | AK24: 446
O25: Terry Highton | P25: 543 | R25: Just Friends | S25: 1062 | V25: 19 | W25: 42 | X25: Chris Johnson | Y25: 27 | Z25: 3643 | AA25: 134.9259259 | AB25: 49 | AC25: 188 | AD25: 239 | AE25: 483 | AF25: 651 | AH25: Handicap Series | AJ25: Handicap Series
O26: Martin Lapidge | P26: 519 | R26: Brothers Grimm | S26: 873 | V26: 20 | W26: 33 | X26: Owen Campbell | Y26: 6 | Z26: 802 | AA26: 133.6666667 | AB26: 50 | AC26: 212 | AD26: 242 | AE26: 480 | AF26: 570 | AH26: Donna Smith | AI26: 659 | AJ26: Just Friends | AK26: 1311
O27: Paul Simmons | P27: 469 | R27: The Kings | S27: 868 | V27: 21 | W27: 51 | X27: Tony Pearce | Y27: 27 | Z27: 3594 | AA27: 133.1111111 | AB27: 51 | AC27: 164 | AD27: 215 | AE27: 433 | AF27: 592 | AH27: Keith MacFarlane | AI27: 657 | AJ27: Hit & Miss | AK27: 1266
O28: Handicap Game | R28: Handicap Game | V28: 22 | W28: 82 | X28: Liz Lake | Y28: 18 | Z28: 2378 | AA28: 132.1111111 | AB28: 51 | AC28: 167 | AD28: 223 | AE28: 439 | AF28: 607 | AH28: Martin Lapidge | AI28: 657 | AJ28: Brothers Grimm | AK28: 1263
O29: Lew Ashenden | P29: 258 | R29: The Kings | S29: 471 | V29: 23 | W29: 41 | X29: Lew Ashenden | Y29: 27 | Z29: 3498 | AA29: 129.5555556 | AB29: 53 | AC29: 204 | AD29: 258 | AE29: 422 | AF29: 596 | AH29: Terry Highton | AI29: 654 | AJ29: Boom | AK29: 1232
O30: Karl King | P30: 243 | R30: Just Friends | S30: 441 | V30: 24 | W30: 83 | X30: Donna Smith | Y30: 21 | Z30: 2701 | AA30: 128.6190476 | AB30: 54 | AC30: 182 | AD30: 241 | AE30: 482 | AF30: 659 | AH30: Martin Cook | AI30: 654 | AJ30: Hot Chris Bunz | AK30: 1225
O31: Martin Lapidge | P31: 238 | R31: Boom | S31: 429 | V31: 25 | W31: 91 | X31: Karen Davies | Y31: 15 | Z31: 1875 | AA31: 125 | AB31: 57 | AC31: 159 | AD31: 213 | AE31: 421 | AF31: 562
O32: Handicap Series | R32: Handicap Series | V32: 26 | W32: 63 | X32: Mick King
D33: Website: www.tenpinleicester.co.uk | O33: Martin Lapidge | P33: 657 | R33: Just Friends | S33: 1311 | V33: 27
O34: Terry Highton | P34: 654 | R34: Hit & Miss | S34: 1157 | V34: 28
O35: Paul Simmons | P35: 610 | R35: The Kings | S35: 1144
C38: Working area for high scores this week | W38: Working area for high scores in week
C39: Copied from teambase | W39: Copied from playbase before updating playstats
F40: Points | J40: High Game | L40: Series | AC40: Scratch | AE40: Handicap
E41: Played | F41: Won | G41: Lost | H41: Pins | I41: Avge | J41: Scratch | K41: Hcap | L41: Scratch | M41: Hcap | AC41: Scr | AD41: Hcap | AE41: Scr | AF41: Hcap
C42: 9 | D42: Just Friends | E42: 1 | F42: 10 | G42: 2 | H42: 1311 | I42: 437 | J42: 358 | K42: 441 | L42: 1062 | M42: 1311 | W42: 92 | X42: Martin Lapidge | Y42: 3 | Z42: 519 | AA42: 173 | AB42: 46 | AC42: 192 | AD42: 238 | AE42: 519 | AF42: 657
C43: 8 | D43: Hit & Miss | E43: 1 | F43: 8 | G43: 4 | H43: 1157 | I43: 385.6666667 | J43: 302 | K43: 400 | L43: 863 | M43: 1157 | W43: 93 | X43: Terry Highton | Y43: 3 | Z43: 543 | AA43: 181 | AB43: 37 | AC43: 198 | AD43: 235 | AE43: 543 | AF43: 654
C44: 10 | D44: The Kings | E44: 1 | F44: 2 | G44: 10 | H44: 1144 | I44: 381.3333333 | J44: 379 | K44: 471 | L44: 868 | M44: 1144 | W44: 81 | X44: Paul Simmons | Y44: 3 | Z44: 469 | AA44: 156.3333333 | AB44: 47 | AC44: 159 | AD44: 206 | AE44: 469 | AF44: 610
C45: 7 | D45: Brothers Grimm | E45: 1 | F45: 4 | G45: 8 | H45: 1065 | I45: 355 | J45: 328 | K45: 392 | L45: 873 | M45: 1065 | W45: 102 | X45: Karl King | Y45: 3 | Z45: 453 | AA45: 151 | AB45: 43 | AC45: 200 | AD45: 243 | AE45: 453 | AF45: 582
C46: 4 | D46: Boom | E46: 1 | F46: 8 | G46: 4 | H46: 1057 | I46: 352.3333333 | J46: 327 | K46: 429 | L46: 751 | M46: 1057 | W46: 31 | X46: Sarah Shellard | Y46: 3 | Z46: 428 | AA46: 142.6666667 | AB46: 50 | AC46: 156 | AD46: 206 | AE46: 428 | AF46: 578
C47: 6 | D47: Mac Too | E47: 1 | F47: 8 | G47: 4 | H47: 1048 | I47: 349.3333333 | J47: 319 | K47: 387 | L47: 844 | M47: 1048 | W47: 72 | X47: Terry Emmony | Y47: 3 | Z47: 452 | AA47: 150.6666667 | AB47: 39 | AC47: 179 | AD47: 218 | AE47: 452 | AF47: 569
C48: 5 | D48: Duo | E48: 1 | F48: 4 | G48: 8 | H48: 1041 | I48: 347 | J48: 293 | K48: 373 | L48: 801 | M48: 1041 | W48: 51 | X48: Tony Pearce | Y48: 3 | Z48: 414 | AA48: 138 | AB48: 51 | AC48: 164 | AD48: 215 | AE48: 414 | AF48: 567
C49: 3 | D49: Chucklers | E49: 1 | F49: 4 | G49: 8 | H49: 990 | I49: 330 | J49: 291 | K49: 371 | L49: 750 | M49: 990 | W49: 101 | X49: Kevin King | Y49: 3 | Z49: 415 | AA49: 138.3333333 | AB49: 49 | AC49: 179 | AD49: 228 | AE49: 415 | AF49: 562
W50: 41 | X50: Lew Ashenden | Y50: 3 | Z50: 395 | AA50: 131.6666667 | AB50: 54 | AC50: 204 | AD50: 258 | AE50: 395 | AF50: 557
W51: 82 | X51: Liz Lake | Y51: 3 | Z51: 394 | AA51: 131.3333333 | AB51: 51 | AC51: 143 | AD51: 194 | AE51: 394 | AF51: 547
W52: 61 | X52: Diane MacFarlane | Y52: 3 | Z52: 412 | AA52: 137.3333333 | AB52: 40 | AC52: 144 | AD52: 184 | AE52: 412 | AF52: 532
W53: 62 | X53: Keith MacFarlane | Y53: 3 | Z53: 432 | AA53: 144 | AB53: 28 | AC53: 175 | AD53: 203 | AE53: 432 | AF53: 516
W54: 42 | X54: Chris Johnson | Y54: 3 | Z54: 356 | AA54: 118.6666667 | AB54: 48 | AC54: 139 | AD54: 187 | AE54: 356 | AF54: 500
W55: 71 | X55: Steve Emmony | Y55: 3 | Z55: 421 | AA55: 140.3333333 | AB55: 25 | AC55: 149 | AD55: 174 | AE55: 421 | AF55: 496
W56: 52 | X56: Richard Lester | Y56: 3 | Z56: 387 | AA56: 129 | AB56: 29 | AC56: 129 | AD56: 158 | AE56: 387 | AF56: 474
W57: 33 | X57: Owen Campbell | Y57: 3 | Z57: 322 | AA57: 107.3333333 | AB57: 30 | AC57: 135 | AD57: 165 | AE57: 322 | AF57: 412

Sheet high scores
C3: High Week | I3: Highweek
C5: Lew Ashenden | D5: 204 | F5: The Kings | G5: 379 | I5: =C5 -> Lew Ashenden | J5: 204 | K5: =C13 -> Lew Ashenden | L5: 258 | M5: =C9 -> Terry Highton | N5: 543 | O5: =C17 -> Martin Lapidge | P5: 657
C6: Karl King | D6: 200 | F6: Just Friends | G6: 358 | I6: Karl King | J6: 200 | K6: Karl King | L6: 243 | M6: Martin Lapidge | N6: 519 | O6: Terry Highton | P6: 654
C7: Terry Highton | D7: 198 | F7: Brothers Grimm | G7: 328 | I7: Terry Highton | J7: 198 | K7: Martin Lapidge | L7: 238 | M7: Paul Simmons | N7: 469 | O7: Paul Simmons | P7: 610
C8: Scratch Series | F8: Scratch Series
C9: Terry Highton | D9: 543 | F9: Just Friends | G9: 1062 | I9: =F5 -> The Kings | J9: 379 | K9: =F13 -> The Kings | L9: 471 | M9: =F9 -> Just Friends | N9: 1062 | O9: =F17 -> Just Friends | P9: 1311
C10: Martin Lapidge | D10: 519 | F10: Brothers Grimm | G10: 873 | I10: Just Friends | J10: 358 | K10: Just Friends | L10: 441 | M10: Brothers Grimm | N10: 873 | O10: Hit & Miss | P10: 1157
C11: Paul Simmons | D11: 469 | F11: The Kings | G11: 868 | I11: Brothers Grimm | J11: 328 | K11: Boom | L11: 429 | M11: The Kings | N11: 868 | O11: The Kings | P11: 1144
C12: Handicap Game | F12: Handicap Game
C13: Lew Ashenden | D13: 258 | F13: The Kings | G13: 471
C14: Karl King | D14: 243 | F14: Just Friends | G14: 441
C15: Martin Lapidge | D15: 238 | F15: Boom | G15: 429
C16: Handicap Series | F16: Handicap Series
C17: Martin Lapidge | D17: 657 | F17: Just Friends | G17: 1311
C18: Terry Highton | D18: 654 | F18: Hit & Miss | G18: 1157
C19: Paul Simmons | D19: 610 | F19: The Kings | G19: 1144
C22: High Season | I22: highest
C24: Steve Emmony | D24: 227 | E24: Mac Too | F24: 383 | I24: =C24 -> Steve Emmony | J24: =D24 -> 227 | K24: =C36 -> Lew Ashenden | L24: =D36 -> 258 | M24: =C30 -> Steve Emmony | N24: =D30 -> 571 | O24: =C42 -> Donna Smith | P24: =D42 -> 659
C25: Owen Campbell | D25: 212 | E25: The Kings | F25: 379 | I25: =C25 -> Owen Campbell | J25: 212 | K25: =C37 -> Steve Emmony | L25: 253 | M25: =C31 -> Keith MacFarlane | N25: 567 | O25: =C43 -> Keith MacFarlane | P25: 657
C26: Keith MacFarlane | D26: 207 | E26: Brothers Grimm | F26: 368 | I26: Keith MacFarlane | J26: 207 | K26: Chris Woodward | L26: 250 | M26: Terry Highton | N26: 543 | O26: Martin Lapidge | P26: 657
C27: Chris Woodward | D27: 204 | E27: Chucklers | F27: 368 | I27: Chris Woodward | J27: 204 | K27: Martin Cook | L27: 249 | M27: Diane MacFarlane | N27: 520 | O27: Terry Highton | P27: 654
C28: Lew Ashenden | D28: 204 | E28: Just Friends | F28: 358 | I28: Lew Ashenden | J28: 204 | K28: Karl King | L28: 243 | M28: Martin Lapidge | N28: 519 | O28: Martin Cook | P28: 654
C29: Scratch Series | E29: Scratch Series
C30: Steve Emmony | D30: 571 | E30: Just Friends | F30: 1062 | I30: =E24 -> Mac Too | J30: =F24 -> 383 | K30: =E36 -> The Kings | L30: =F36 -> 471 | M30: =E30 -> Just Friends | N30: =F30 -> 1062 | O30: =E42 -> Just Friends | P30: =F42 -> 1311
C31: Keith MacFarlane | D31: 567 | E31: Brothers Grimm | F31: 1006 | I31: =E25 -> The Kings | J31: 379 | K31: =E37 -> Brothers Grimm | L31: 457 | M31: =E31 -> Brothers Grimm | N31: 1006 | O31: =E43 -> Hit & Miss | P31: 1266
C32: Terry Highton | D32: 543 | E32: Mac Too | F32: 1004 | I32: Brothers Grimm | J32: 368 | K32: Hit & Miss | L32: 457 | M32: Mac Too | N32: 1004 | O32: Brothers Grimm | P32: 1263
C33: Diane MacFarlane | D33: 520 | E33: Hot Chris Bunz | F33: 958 | I33: Chucklers | J33: 368 | K33: Boom | L33: 447 | M33: Hot Chris Bunz | N33: 958 | O33: Boom | P33: 1232
C34: Martin Lapidge | D34: 519 | E34: Hit & Miss | F34: 921 | I34: Just Friends | J34: 358 | K34: Chucklers | L34: 446 | M34: Hit & Miss | N34: 921 | O34: Hot Chris Bunz | P34: 1225
C35: Handicap Game | E35: Handicap Game
C36: Lew Ashenden | D36: 258 | E36: The Kings | F36: 471
C37: Steve Emmony | D37: 253 | E37: Brothers Grimm | F37: 457
C38: Chris Woodward | D38: 250 | E38: Hit & Miss | F38: 457
C39: Martin Cook | D39: 249 | E39: Boom | F39: 447 | I39: Best
C40: Karl King | D40: 243 | E40: Chucklers | F40: 446 | I40: Terry Highton | J40: 543
C41: Handicap Series | E41: Handicap Series | I41: Graham Lapidge | J41: 519
C42: Donna Smith | D42: 659 | E42: Just Friends | F42: 1311 | I42: Lew Ashenden | K42: 204
C43: Keith MacFarlane | D43: 657 | E43: Hit & Miss | F43: 1266 | I43: Karl King | K43: 200
C44: Martin Lapidge | D44: 657 | E44: Brothers Grimm | F44: 1263
C45: Terry Highton | D45: 654 | E45: Boom | F45: 1232
C46: Martin Cook | D46: 654 | E46: Hot Chris Bunz | F46: 1225

Sheet Scratch Leagues
C3: Monday Doubles League - Summer 2013 | G3: Scratch High Scores League | K3: After Week 10, 15 July
C5: High Game | I5: High Series
C6: 175+ | F6: 200+ | I6: 475+ | L6: 500+
E7: Best | H7: Best | K7: Best | N7: Best
C8: Keith MacFarlane | D8: 5 | E8: 191 | F8: Keith MacFarlane | G8: 2 | H8: 207 | I8: Steve Emmony | J8: 4 | K8: 499 | L8: Steve Emmony | M8: 2 | N8: 571
C9: Steve Emmony | D9: 4 | E9: 196 | F9: Steve Emmony | G9: 1 | H9: 227 | I9: Richard Lester | J9: 4 | K9: 487 | L9: Keith MacFarlane | M9: 2 | N9: 567
C10: Richard Lester | D10: 4 | E10: 194 | F10: Owen Campbell | G10: 1 | H10: 212 | I10: Keith MacFarlane | J10: 2 | K10: 499 | L10: Terry Highton | M10: 2 | N10: 543
C11: Terry Highton | D11: 3 | E11: 198 | F11: Chris Woodward | G11: 1 | H11: 204 | I11: Terry Emmony | J11: 2 | K11: 493 | L11: Diane MacFarlane | M11: 2 | N11: 520
C12: Kevin King | D12: 3 | E12: 194 | F12: Lew Ashenden | G12: 1 | H12: 204 | I12: Martin Lapidge | J12: 1 | K12: 496 | L12: Richard Lester | M12: 2 | N12: 515
C13: Martin Lapidge | D13: 3 | E13: 192 | F13: Karl King | G13: 1 | H13: 200 | I13: Nathon Ferrie | J13: 1 | K13: 488 | L13: Martin Lapidge | M13: 1 | N13: 519
C14: Diane MacFarlane | D14: 3 | E14: 191 | I14: Chris Woodward | J14: 1 | K14: 486 | L14: Chris Woodward | M14: 1 | N14: 505
C15: Martin Cook | D15: 2 | E15: 199 | I15: Chris Johnson | J15: 1 | K15: 483 | L15: Martin Cook | M15: 1 | N15: 504
C16: Terry Emmony | D16: 2 | E16: 189 | I16: Carl Briggs | J16: 1 | K16: 482
C17: Chris Woodward | D17: 2 | E17: 188 | I17: Donna Smith | J17: 1 | K17: 482
C18: Donna Smith | D18: 2 | E18: 182 | I18: Owen Campbell | J18: 1 | K18: 480
C19: Nathon Ferrie | D19: 1 | E19: 197 | I19: Ethan Taylor | J19: 1 | K19: 475
C20: Chris Johnson | D20: 1 | E20: 188
C21: Paul Simmons | D21: 1 | E21: 188
C22: Bunz Hughes | D22: 1 | E22: 184
C23: Sarah Shellard | D23: 1 | E23: 181
C24: Carl Briggs | D24: 1 | E24: 179
C25: Karl King | D25: 1 | E25: 175
C27: Bunz Hughes
C28: Gary Wileman
C29: Sarah Shellard
C30: Ethan Taylor
C31: Owen Campbell
C32: Lew Ashenden
C33: Chris Johnson
C34: Tony Pearce
C35: Mick King
C36: Terry Emmony
C37: Martin Cook
C38: Paul Simmons
C39: Liz Lake
C40: Karen Davies
D41: =SUM(D8:D40) -> 40

Sheet Certificates
N1: count2 | O1: 16
C4: 1 | D4: League Champions | E4: RTFB | F4: Gary Wileman | G4: Tony King | H4: Carl Briggs | J4: 405 | K4: 477 | L4: 1068 | M4: 1284 | S4: Hollywood
C5: 2 | D5: League Runners Up | E5: Brothers Grimm | F5: Steve Emmony | G5: Terry Emmony | J5: 405 | K5: 466 | L5: 1068 | M5: 1257 | S5: Bowl | U5: Final Position: | V5: =VLOOKUP(count2,league,2) -> Sixteenth
C6: 3 | D6: League Third place | E6: Mac Too +1 | F6: Diane MacFarlane | G6: Mick King | H6: Keith MacFarlane | J6: 399 | K6: 485 | L6: 1062 | M6: 1266 | S6: Leicester | U6: =VLOOKUP(count2,league,3) -> Pin Pals
C7: 4 | D7: Fourth | E7: The Young Ones | F7: Tim Hill | G7: Adam Holland | H7: Nicola Rye Holland | J7: 387 | K7: 464 | L7: 986 | M7: 1220
C8: 5 | D8: Fifth | E8: X-Men | F8: Paul Hurst | G8: Merv Farrow | H8: Mick Freeborn | J8: 392 | K8: 475 | L8: 1043 | M8: 1292 | S8: Monday | V8: =VLOOKUP(count2,league,4) -> Berenice Davies
C9: 6 | D9: Sixth | E9: Duo | F9: Tony Pearce | G9: Richard Lester | J9: 367 | K9: 451 | L9: 984 | M9: 1236 | S9: Handicap | V9: =VLOOKUP(count2,league,5) -> Anita Highton
C10: 7 | D10: Seventh | E10: Dominoes | F10: Rose Barton | G10: Alan Barton | H10: Matt Barton | I10: Jason Kettle | J10: 414 | K10: 483 | L10: 999 | M10: 1207 | S10: Doubles | V10: =IF(VLOOKUP(count2,league,6)="","",VLOOKUP(count2,league,6)) -> Karen Davies
C11: 8 | D11: Eighth | E11: The Owls | F11: Mary Grayson | G11: Brian Grayson | J11: 336 | K11: 426 | L11: 933 | M11: 1212 | S11: League | V11: =IF(VLOOKUP(count2,league,7)="","",VLOOKUP(count2,league,7)) -> 
C12: 9 | D12: Ninth | E12: Turkeys | F12: Martin Cook | G12: Harry Hargreaves | J12: 437 | K12: 502 | L12: 1141 | M12: 1336
C13: 10 | D13: Tenth | E13: Whip & Bake | F13: Carrie Bryer | G13: Steve Bryer | H13: John Bryer | J13: 378 | K13: 460 | L13: 995 | M13: 1238 | S13: Winter
C14: 11 | D14: Eleventh | E14: Glitter Girls | F14: Barbara Lewis | G14: Kim Stone | H14: Julie Pinder | J14: 368 | K14: 475 | L14: 933 | M14: 1284 | S14: 2010/2011
C15: 12 | D15: Twelth | E15: Lightning Strikes | F15: Mike Davies | G15: Terry Highton | H15: Graham Lewis | I15: Phil Highton | J15: 415 | K15: 479 | L15: 1141 | M15: 1333 | S15: 16 teams over 31 weeks
C16: 13 | D16: Thirteenth | E16: Hit & Miss | F16: Mandy King | G16: Paul Simmons | H16: Liz Lake | I16: Donna Smith | J16: 380 | K16: 464 | L16: 967 | M16: 1242 | S16: 13 Sep 2010 - 23 May 2011
C17: 14 | D17: Fourteenth | E17: SOS | F17: Dale Cousins | G17: Susi Cousins | H17: Steve Cousins | I17: Chris Cousins | J17: 400 | K17: 474 | L17: 1002 | M17: 1224
C18: 15 | D18: Fifteenth | E18: I Can't Believe It's Not Gutter | F18: Matt Lowe | G18: Rich Tewkesbury | H18: John Glover | I18: Joe McConville | J18: 357 | K18: 474 | L18: 914 | M18: 1265
C19: 16 | D19: Sixteenth | E19: Pin Pals | F19: Berenice Davies | G19: Anita Highton | H19: Karen Davies | J19: 337 | K19: 438 | L19: 905 | M19: 1214 | Z19: Team High Scores:
Z20: Game: | AA20: Scratch | AB20: =VLOOKUP(count2,league,8) -> 337
S21: Hollywood | AA21: Handicap | AB21: =VLOOKUP(count2,league,9) -> 438
S22: Bowl | U22: Final Position: | V22: =VLOOKUP(count2,league,2) -> Sixteenth | Z22: Series: | AA22: Scratch | AB22: =VLOOKUP(count2,league,10) -> 905
S23: Leicester | U23: =VLOOKUP(count2,league,3) -> Pin Pals | AA23: Handicap | AB23: =VLOOKUP(count2,league,11) -> 1214
S25: Monday | V25: =VLOOKUP(count2,league,4) -> Berenice Davies
S26: Handicap | V26: =VLOOKUP(count2,league,5) -> Anita Highton
S27: Doubles | V27: =IF(VLOOKUP(count2,league,6)="","",VLOOKUP(count2,league,6)) -> Karen Davies
S28: League | V28: =IF(VLOOKUP(count2,league,7)="","",VLOOKUP(count2,league,7)) -> 
S30: Winter
S31: 2010/2011
S32: 16 teams over 31 weeks
S33: 13 Sep 2010 - 23 May 2011

Sheet Sheet2
